{"text_format":"1","workbook":"xlsx","n_sheets":2,"sheets":["Datas","DVK"],"not_rendered":{"charts":0,"images":0,"macros":1,"external_links":0,"defined_names":4,"comments":0,"pivot_tables":0},"unopened":[],"bounds":{"document_bytes":16777216,"sheet_cells":100000,"rows_first":2000,"rows_last":500,"rows_between":2000,"halvings":0,"cell_chars":16384,"cell_head_chars":4096},"cells_cut":0,"cells_raw":0,"read":"whole","date_system":"1900"}

{"sheet":"Datas","index":0,"n_rows":63,"n_cols":13,"rows_kept":63,"cut":false,"hidden":false,"merged":[]}
["Date1","bun","Nom1","Nom2","Heure","Date2","Num","XZ","Résultat"]
["29.08.17","PD","X","Y","02:01:00",{"$f":"IF(A2=0,\"\",DATEVALUE(SUBSTITUTE(A2,\".\",\"/\")))","v":"2017-08-29"},{"$f":"IF(F2=\"\",\"\",MOD(SUMPRODUCT(--MID(TEXT(F2,\"jjmmaaaa\"),ROW($1:$8),1))-1,9)+1)","v":2},{"$f":"IF(HOUR(E2)>MINUTE(E2),0,IF(HOUR(E2)<MINUTE(E2),1,\"DRAW\"))","v":0},{"$f":"IF(G2=G1,\"\",IFERROR(IF(COUNTIF(OFFSET(H2,,,COUNTIF(G:G,G2),),H2)=COUNTIF(G:G,G2),OFFSET(C2,,H2),\"N/A\"),\"NUL\"))","v":"X"},null,"Jour",null,"Lendemain"]
["04.02.18","PD","Y","X","01:01:00","2018-02-04",{"$f":"IF(F3=\"\",\"\",MOD(SUMPRODUCT(--MID(TEXT(F3,\"jjmmaaaa\"),ROW($1:$8),1))-1,9)+1)","v":8},"DRAW",{"$f":"IF(G3=G2,\"\",IFERROR(IF(COUNTIF(OFFSET(H3,,,COUNTIF(G:G,G3),),H3)=COUNTIF(G:G,G3),OFFSET(C3,,H3),\"N/A\"),\"NUL\"))","v":"NUL"},null,{"$f":"TODAY()","v":"2018-09-07"},{"$f":"(IF(K3=\"\",\"\",MOD(SUMPRODUCT(--MID(TEXT(K3,\"jjmmaaaa\"),ROW($1:$8),1))-1,9)+1))+M3","v":9}]
[null,null,null,null,null,"",{"$f":"IF(F4=\"\",\"\",MOD(SUMPRODUCT(--MID(TEXT(F4,\"jjmmaaaa\"),ROW($1:$8),1))-1,9)+1)","v":""},"DRAW",{"$f":"IF(G4=G3,\"\",IFERROR(IF(COUNTIF(OFFSET(H4,,,COUNTIF(G:G,G4),),H4)=COUNTIF(G:G,G4),OFFSET(C4,,H4),\"N/A\"),\"NUL\"))","v":"N/A"}]
[null,null,null,null,null,"","","DRAW",""]
[null,null,null,null,null,"","","DRAW",""]
[null,null,null,null,null,"","","DRAW",""]
[null,null,null,null,null,"","","DRAW",""]
[null,null,null,null,null,"","","DRAW",""]
[null,null,null,null,null,"","","DRAW",""]
[null,null,null,null,null,"","","DRAW",""]
[null,null,null,null,null,"","","DRAW",""]
[null,null,null,null,null,"","","DRAW",""]
[null,null,null,null,null,"","","DRAW",""]
[null,null,null,null,null,"","","DRAW",""]
[null,null,null,null,null,"","","DRAW",""]
[null,null,null,null,null,"","","DRAW",""]
[null,null,null,null,null,"","","DRAW",""]
[null,null,null,null,null,"","","DRAW",""]
[null,null,null,null,null,"","","DRAW",""]
[null,null,null,null,null,"","","DRAW",""]
[null,null,null,null,null,"","","DRAW",""]
[null,null,null,null,null,"","","DRAW",""]
[null,null,null,null,null,"","","DRAW",""]
[null,null,null,null,null,"","","DRAW",""]
[null,null,null,null,null,"","","DRAW",""]
[null,null,null,null,null,"","","DRAW",""]
[null,null,null,null,null,"","","DRAW",""]
[null,null,null,null,null,"","","DRAW",""]
[null,null,null,null,null,"","","DRAW",""]
[null,null,null,null,null,"","","DRAW",""]
[null,null,null,null,null,"","","DRAW",""]
[null,null,null,null,null,"","","DRAW",""]
[null,null,null,null,null,{"$f":"IF(A34=0,\"\",DATEVALUE(SUBSTITUTE(A34,\".\",\"/\")))","v":""},{"$f":"IF(F34=\"\",\"\",MOD(SUMPRODUCT(--MID(TEXT(F34,\"jjmmaaaa\"),ROW($1:$8),1))-1,9)+1)","v":""},{"$f":"IF(HOUR(E34)>MINUTE(E34),0,IF(HOUR(E34)<MINUTE(E34),1,\"DRAW\"))","v":"DRAW"},{"$f":"IF(G34=G33,\"\",IFERROR(IF(COUNTIF(OFFSET(H34,,,COUNTIF(G:G,G34),),H34)=COUNTIF(G:G,G34),OFFSET(C34,,H34),\"N/A\"),\"NUL\"))","v":""}]
[null,null,null,null,null,"","","DRAW",""]
[null,null,null,null,null,"","","DRAW",""]
[null,null,null,null,null,"","","DRAW",""]
[null,null,null,null,null,"","","DRAW",""]
[null,null,null,null,null,"","","DRAW",""]
[null,null,null,null,null,"","","DRAW",""]
[null,null,null,null,null,"","","DRAW",""]
[null,null,null,null,null,"","","DRAW",""]
[null,null,null,null,null,"","","DRAW",""]
[null,null,null,null,null,"","","DRAW",""]
[null,null,null,null,null,"","","DRAW",""]
[null,null,null,null,null,"","","DRAW",""]
[null,null,null,null,null,"","","DRAW",""]
[null,null,null,null,null,"","","DRAW",""]
[null,null,null,null,null,"","","DRAW",""]
[null,null,null,null,null,"","","DRAW",""]
[null,null,null,null,null,"","","DRAW",""]
[null,null,null,null,null,"","","DRAW",""]
[null,null,null,null,null,"","","DRAW",""]
[null,null,null,null,null,"","","DRAW",""]
[null,null,null,null,null,"","","DRAW",""]
[null,null,null,null,null,"","","DRAW",""]
[null,null,null,null,null,null,null,"DRAW",""]
[null,null,null,null,null,null,null,"DRAW",""]
[null,null,null,null,null,null,null,"DRAW",""]
[null,null,null,null,null,null,null,"DRAW",""]
[null,null,null,null,null,null,null,"DRAW",""]
[null,null,null,null,null,null,null,"DRAW",""]
[null,null,null,null,null,null,null,"DRAW",""]

{"sheet":"DVK","index":1,"n_rows":730,"n_cols":35,"rows_kept":730,"cut":false,"hidden":false,"merged":[[1,32,1,34]]}
["X DOIT ETRE SELECTIONNER CAR C'EST X EN Datas!I2",null,null,null,null,null,null,null,null,null,null,null,"NUL DOIT ETRE SELECTIONNER CAR C'EST X EN Datas!I3",null,null,null,null,null,null,null,null,null,null,null,null,"CONCATENER","CONCATENER","Domicile","Visiteur","Chiffre ","ZONE"]
[null,null,null,"A =",4,null,null,null,null,null,null,null,null,null,"B =",{"$f":"Datas!G3","v":8},null,null,null,null,null,"X","Y","Jour","Résultat",null,{"$f":"CONCATENATE(AB2,AC2,AD2)","v":"111"},1,1,1,"NUL",null,"Stats"]
[null,null,null,null,null,null,null,null,null,null,null,null,null,null,null,null,null,null,null,null,null,1,8,{"$f":"IF(V3=0,\"\",Datas!L3)","v":9},{"$f":"VLOOKUP(Z3,$AA$2:$AE$1000,5,FALSE)","v":"NUL"},{"$f":"CONCATENATE(V3,W3,X3)","v":"189"},{"$f":"CONCATENATE(AB3,AC3,AD3)","v":"222"},2,2,2,"NUL",null,{"$f":"V2","v":"X"},{"$f":"W2","v":"Y"},"NUL"]
[null,null,null,null,null,null,null,null,null,null,null,null,null,null,null,null,null,null,null,null,null,2,9,{"$f":"IF(V4=0,\"\",Datas!L3)","v":9},{"$f":"VLOOKUP(Z4,$AA$2:$AE$1000,5,FALSE)","v":"Y"},{"$f":"CONCATENATE(V4,W4,X4)","v":"299"},"333",3,3,3,"NUL",null,{"$f":"COUNTIF($Y$3:$Y$50,AG3)/COUNTIF($Y$3:$Y$50,\"><\")","v":0.125},{"$f":"COUNTIF($Y$3:$Y$50,AH3)/COUNTIF($Y$3:$Y$50,\"><\")","v":0.75},{"$f":"COUNTIF($Y$3:$Y$50,AI3)/COUNTIF($Y$3:$Y$50,\"><\")","v":0.125}]
[null,null,null,null,null,null,null,null,null,null,null,null,null,null,null,null,null,null,null,null,null,3,1,{"$f":"IF(V5=0,\"\",Datas!L3)","v":9},{"$f":"VLOOKUP(Z5,$AA$2:$AE$1000,5,FALSE)","v":"Y"},{"$f":"CONCATENATE(V5,W5,X5)","v":"319"},"444",4,4,4,"NUL"]
[null,null,null,null,null,null,null,null,null,null,null,null,null,null,null,null,null,null,null,null,null,3,4,{"$f":"IF(V6=0,\"\",Datas!L3)","v":9},"X",{"$f":"CONCATENATE(V6,W6,X6)","v":"349"},"555",5,5,5,"NUL"]
[null,null,null,null,null,null,null,null,null,null,null,null,null,null,null,null,null,null,null,null,null,4,2,{"$f":"IF(V7=0,\"\",Datas!L3)","v":9},"Y",{"$f":"CONCATENATE(V7,W7,X7)","v":"429"},"666",6,6,6,"NUL"]
[null,null,null,null,null,null,null,null,null,null,null,null,null,null,null,null,null,null,null,null,null,4,3,{"$f":"IF(V8=0,\"\",Datas!L3)","v":9},{"$f":"VLOOKUP(Z8,$AA$2:$AE$1000,5,FALSE)","v":"Y"},{"$f":"CONCATENATE(V8,W8,X8)","v":"439"},"777",7,7,7,"NUL"]
[null,null,null,null,null,null,null,null,null,null,null,null,null,null,null,null,null,null,null,null,null,5,2,{"$f":"IF(V9=0,\"\",Datas!L3)","v":9},{"$f":"VLOOKUP(Z9,$AA$2:$AE$1000,5,FALSE)","v":"Y"},"529","888",8,8,8,"NUL"]
[null,null,null,null,1,2,3,4,5,6,7,8,9,"M",{"$f":"V2","v":"X"},null,null,null,null,null,null,6,1,{"$f":"IF(V10=0,\"\",Datas!L3)","v":9},"Y",{"$f":"CONCATENATE(V10,W10,X10)","v":"619"},"999",9,9,9,"NUL"]
[null,null,null,1,{"$f":"NBRèglesVraies(E$10,$D11,$E$2,$P$2)","v":1},{"$f":"NBRèglesVraies(F$10,$D11,$E$2,$P$2)","v":1},{"$f":"NBRèglesVraies(G$10,$D11,$E$2,$P$2)","v":2},{"$f":"NBRèglesVraies(H$10,$D11,$E$2,$P$2)","v":1},{"$f":"NBRèglesVraies(I$10,$D11,$E$2,$P$2)","v":1},{"$f":"NBRèglesVraies(J$10,$D11,$E$2,$P$2)","v":2},0,0,1,null,null,null,null,null,null,null,null,null,null,{"$f":"IF(V11=0,\"\",Datas!L3)","v":""},{"$error":"#N/A"},"","112",1,1,2,"NUL"]
[null,null,null,2,{"$f":"NBRèglesVraies(E$10,$D12,$E$2,$P$2)","v":1},{"$f":"NBRèglesVraies(F$10,$D12,$E$2,$P$2)","v":1},{"$f":"NBRèglesVraies(G$10,$D12,$E$2,$P$2)","v":1},{"$f":"NBRèglesVraies(H$10,$D12,$E$2,$P$2)","v":2},2,0,0,0,0,null,null,null,null,null,null,null,null,null,null,{"$f":"IF(V12=0,\"\",Datas!L3)","v":""},{"$error":"#N/A"},"","113",1,1,3,{"$f":"V2","v":"X"}]
[null,null,null,3,0,1,1,2,1,0,0,0,0,null,null,null,null,null,null,null,null,null,null,{"$f":"IF(V13=0,\"\",Datas!L3)","v":""},{"$error":"#N/A"},"","114",1,1,4,{"$f":"W2","v":"Y"}]
[null,null,null,4,0,0,2,0,{"$f":"NBRèglesVraies(I$10,$D14,$E$2,$P$2)","v":0},1,0,0,0,null,null,null,null,null,null,null,null,null,null,{"$f":"IF(V14=0,\"\",Datas!L3)","v":""},{"$error":"#N/A"},"","115",1,1,5,{"$f":"V2","v":"X"}]
[null,null,null,5,0,1,0,0,0,0,1,0,0,null,null,null,null,null,null,null,null,null,null,{"$f":"IF(V15=0,\"\",Datas!L3)","v":""},{"$error":"#N/A"},"","116",1,1,6,{"$f":"V2","v":"X"}]
[null,null,null,6,1,0,1,0,0,0,0,1,0,null,null,null,null,null,null,null,null,null,null,{"$f":"IF(V16=0,\"\",Datas!L3)","v":""},{"$error":"#N/A"},"","117",1,1,7,{"$f":"W2","v":"Y"}]
[null,null,null,7,0,1,1,1,0,0,0,0,1,null,null,null,null,null,null,null,null,null,null,{"$f":"IF(V17=0,\"\",Datas!L3)","v":""},{"$error":"#N/A"},"","118",1,1,8,{"$f":"W2","v":"Y"}]
[null,null,null,8,2,1,1,1,1,0,0,1,0,null,null,null,null,null,null,null,null,null,null,{"$f":"IF(V18=0,\"\",Datas!L3)","v":""},{"$error":"#N/A"},"","119",1,1,9,"NUL"]
[null,null,null,9,1,2,1,1,1,1,1,0,1,null,null,null,null,null,null,null,null,null,null,{"$f":"IF(V19=0,\"\",Datas!L3)","v":""},{"$error":"#N/A"},"","121",1,2,1,{"$f":"V2","v":"X"}]
[null,null,null,"N",null,{"$f":"W2","v":"Y"},null,null,null,null,null,null,null,null,null,null,null,null,null,null,null,null,null,{"$f":"IF(V20=0,\"\",Datas!L3)","v":""},{"$f":"VLOOKUP(Z20,$AA$2:$AE$1000,5,FALSE)","v":{"$error":"#N/A"}},"","122",1,2,2,{"$f":"V2","v":"X"}]
[null,null,null,null,null,null,null,null,null,null,null,null,null,null,null,null,null,null,null,null,null,null,null,{"$f":"IF(V21=0,\"\",Datas!L3)","v":""},{"$error":"#N/A"},"","123",1,2,3,{"$f":"V2","v":"X"}]
[null,null,null,null,null,null,null,null,null,null,null,null,null,null,null,null,null,null,null,null,null,null,null,{"$f":"IF(V22=0,\"\",Datas!L3)","v":""},{"$error":"#N/A"},"","124",1,2,4,{"$f":"V2","v":"X"}]
[null,null,null,null,null,null,null,null,null,null,null,null,null,null,null,null,null,null,null,null,null,null,null,{"$f":"IF(V23=0,\"\",Datas!L3)","v":""},{"$error":"#N/A"},"","125",1,2,5,{"$f":"V2","v":"X"}]
[null,null,null,null,null,null,null,null,null,null,null,null,null,null,null,null,null,null,null,null,null,null,null,{"$f":"IF(V24=0,\"\",Datas!L3)","v":""},{"$error":"#N/A"},"","126",1,2,6,"NUL"]
[null,null,null,null,null,null,null,null,null,null,null,null,null,null,null,null,null,null,null,null,null,null,null,{"$f":"IF(V25=0,\"\",Datas!L3)","v":""},{"$error":"#N/A"},"","127",1,2,7,{"$f":"V2","v":"X"}]
[null,null,null,null,null,null,null,null,null,null,null,null,null,null,null,null,null,null,null,null,null,null,null,{"$f":"IF(V26=0,\"\",Datas!L3)","v":""},{"$error":"#N/A"},"","128",1,2,8,{"$f":"V2","v":"X"}]
[null,null,null,null,null,null,null,null,null,null,null,null,null,null,null,null,null,null,null,null,null,null,null,{"$f":"IF(V27=0,\"\",Datas!L3)","v":""},{"$error":"#N/A"},"","129",1,2,9,{"$f":"V2","v":"X"}]
[null,null,null,null,null,null,null,null,null,null,null,null,null,null,null,null,null,null,null,null,null,null,null,{"$f":"IF(V28=0,\"\",Datas!L3)","v":""},{"$error":"#N/A"},"","131",1,3,1,{"$f":"V2","v":"X"}]
[null,null,null,null,null,null,null,null,null,null,null,null,null,null,null,null,null,null,null,null,null,null,null,{"$f":"IF(V29=0,\"\",Datas!L3)","v":""},{"$error":"#N/A"},"","132",1,3,2,"NUL"]
[null,null,null,null,null,null,null,null,null,null,null,null,null,null,null,null,null,null,null,null,null,null,null,{"$f":"IF(V30=0,\"\",Datas!L3)","v":""},{"$error":"#N/A"},"","133",1,3,3,{"$f":"W2","v":"Y"}]
[null,null,null,null,null,null,null,null,null,null,null,null,null,null,null,null,null,null,null,null,null,null,null,null,null,null,{"$f":"CONCATENATE(AB31,AC31,AD31)","v":"134"},1,3,4,{"$f":"W2","v":"Y"}]
[null,null,null,null,null,null,null,null,null,null,null,null,null,null,null,null,null,null,null,null,null,null,null,null,null,null,{"$f":"CONCATENATE(AB32,AC32,AD32)","v":"135"},1,3,5,"NUL"]
[null,null,null,null,null,null,null,null,null,null,null,null,null,null,null,null,null,null,null,null,null,null,null,null,null,null,"136",1,3,6,{"$f":"V2","v":"X"}]
[null,null,null,null,null,null,null,null,null,null,null,null,null,null,null,null,null,null,null,null,null,null,null,null,null,null,"137",1,3,7,{"$f":"V2","v":"X"}]
[null,null,null,null,null,null,null,null,null,null,null,null,null,null,null,null,null,null,null,null,null,null,null,null,null,null,"138",1,3,8,{"$f":"V2","v":"X"}]
[null,null,null,null,null,null,null,null,null,null,null,null,null,null,null,null,null,null,null,null,null,null,null,null,null,null,"139",1,3,9,{"$f":"V2","v":"X"}]
[null,null,null,null,null,null,null,null,null,null,null,null,null,null,null,null,null,null,null,null,null,null,null,null,null,null,"141",1,4,1,{"$f":"V2","v":"X"}]
[null,null,null,null,null,null,null,null,null,null,null,null,null,null,null,null,null,null,null,null,null,null,null,null,null,null,"142",1,4,2,{"$f":"V2","v":"X"}]
[null,null,null,null,null,null,null,null,null,null,null,null,null,null,null,null,null,null,null,null,null,null,null,null,null,null,"143",1,4,3,{"$f":"W2","v":"Y"}]
[null,null,null,null,null,null,null,null,null,null,null,null,null,null,null,null,null,null,null,null,null,null,null,null,null,null,"144",1,4,4,{"$f":"W2","v":"Y"}]
[null,null,null,null,null,null,null,null,null,null,null,null,null,null,null,null,null,null,null,null,null,null,null,null,null,null,"145",1,4,5,{"$f":"W2","v":"Y"}]
[null,null,null,null,null,null,null,null,null,null,null,null,null,null,null,null,null,null,null,null,null,null,null,null,null,null,"146",1,4,6,{"$f":"W2","v":"Y"}]
[null,null,null,null,null,null,null,null,null,null,null,null,null,null,null,null,null,null,null,null,null,null,null,null,null,null,"147",1,4,7,"NUL"]
[null,null,null,null,null,null,null,null,null,null,null,null,null,null,null,null,null,null,null,null,null,null,null,null,null,null,"148",1,4,8,{"$f":"V2","v":"X"}]
[null,null,null,null,null,null,null,null,null,null,null,null,null,null,null,null,null,null,null,null,null,null,null,null,null,null,"149",1,4,9,{"$f":"V2","v":"X"}]
[null,null,null,null,null,null,null,null,null,null,null,null,null,null,null,null,null,null,null,null,null,null,null,null,null,null,"151",1,5,1,{"$f":"V2","v":"X"}]
[null,null,null,null,null,null,null,null,null,null,null,null,null,null,null,null,null,null,null,null,null,null,null,null,null,null,"152",1,5,2,{"$f":"V2","v":"X"}]
[null,null,null,null,null,null,null,null,null,null,null,null,null,null,null,null,null,null,null,null,null,null,null,null,null,null,"153",1,5,3,"NUL"]
[null,null,null,null,null,null,null,null,null,null,null,null,null,null,null,null,null,null,null,null,null,null,null,null,null,null,"154",1,5,4,{"$f":"W2","v":"Y"}]
[null,null,null,null,null,null,null,null,null,null,null,null,null,null,null,null,null,null,null,null,null,null,null,null,null,null,"155",1,5,5,{"$f":"W2","v":"Y"}]
[null,null,null,null,null,null,null,null,null,null,null,null,null,null,null,null,null,null,null,null,null,null,null,null,null,null,"156",1,5,6,{"$f":"W2","v":"Y"}]
[null,null,null,null,null,null,null,null,null,null,null,null,null,null,null,null,null,null,null,null,null,null,null,null,null,null,"157",1,5,7,{"$f":"W2","v":"Y"}]
[null,null,null,null,null,null,null,null,null,null,null,null,null,null,null,null,null,null,null,null,null,null,null,null,null,null,"158",1,5,8,{"$f":"V2","v":"X"}]
[null,null,null,null,null,null,null,null,null,null,null,null,null,null,null,null,null,null,null,null,null,null,null,null,null,null,"159",1,5,9,{"$f":"V2","v":"X"}]
[null,null,null,null,null,null,null,null,null,null,null,null,null,null,null,null,null,null,null,null,null,null,null,null,null,null,"161",1,6,1,{"$f":"V2","v":"X"}]
[null,null,null,null,null,null,null,null,null,null,null,null,null,null,null,null,null,null,null,null,null,null,null,null,null,null,"162",1,6,2,{"$f":"V2","v":"X"}]
[null,null,null,null,null,null,null,null,null,null,null,null,null,null,null,null,null,null,null,null,null,null,null,null,null,null,"163",1,6,3,{"$f":"V2","v":"X"}]
[null,null,null,null,null,null,null,null,null,null,null,null,null,null,null,null,null,null,null,null,null,null,null,null,null,null,"164",1,6,4,{"$f":"W2","v":"Y"}]
[null,null,null,null,null,null,null,null,null,null,null,null,null,null,null,null,null,null,null,null,null,null,null,null,null,null,"165",1,6,5,{"$f":"W2","v":"Y"}]
[null,null,null,null,null,null,null,null,null,null,null,null,null,null,null,null,null,null,null,null,null,null,null,null,null,null,"166",1,6,6,{"$f":"W2","v":"Y"}]
[null,null,null,null,null,null,null,null,null,null,null,null,null,null,null,null,null,null,null,null,null,null,null,null,null,null,"167",1,6,7,{"$f":"W2","v":"Y"}]
[null,null,null,null,null,null,null,null,null,null,null,null,null,null,null,null,null,null,null,null,null,null,null,null,null,null,"168",1,6,8,{"$f":"W2","v":"Y"}]
[null,null,null,null,null,null,null,null,null,null,null,null,null,null,null,null,null,null,null,null,null,null,null,null,null,null,"169",1,6,9,{"$f":"W2","v":"Y"}]
[null,null,null,null,null,null,null,null,null,null,null,null,null,null,null,null,null,null,null,null,null,null,null,null,null,null,"171",1,7,1,{"$f":"V2","v":"X"}]
[null,null,null,null,null,null,null,null,null,null,null,null,null,null,null,null,null,null,null,null,null,null,null,null,null,null,"172",1,7,2,{"$f":"V2","v":"X"}]
[null,null,null,null,null,null,null,null,null,null,null,null,null,null,null,null,null,null,null,null,null,null,null,null,null,null,"173",1,7,3,{"$f":"V2","v":"X"}]
[null,null,null,null,null,null,null,null,null,null,null,null,null,null,null,null,null,null,null,null,null,null,null,null,null,null,{"$f":"CONCATENATE(AB67,AC67,AD67)","v":"174"},1,7,4,"NUL"]
[null,null,null,null,null,null,null,null,null,null,null,null,null,null,null,null,null,null,null,null,null,null,null,null,null,null,"175",1,7,5,{"$f":"W2","v":"Y"}]
[null,null,null,null,null,null,null,null,null,null,null,null,null,null,null,null,null,null,null,null,null,null,null,null,null,null,"176",1,7,6,{"$f":"W2","v":"Y"}]
[null,null,null,null,null,null,null,null,null,null,null,null,null,null,null,null,null,null,null,null,null,null,null,null,null,null,"177",1,7,7,{"$f":"W2","v":"Y"}]
[null,null,null,null,null,null,null,null,null,null,null,null,null,null,null,null,null,null,null,null,null,null,null,null,null,null,"178",1,7,8,{"$f":"W2","v":"Y"}]
[null,null,null,null,null,null,null,null,null,null,null,null,null,null,null,null,null,null,null,null,null,null,null,null,null,null,"179",1,7,9,{"$f":"W2","v":"Y"}]
[null,null,null,null,null,null,null,null,null,null,null,null,null,null,null,null,null,null,null,null,null,null,null,null,null,null,"181",1,8,1,{"$f":"V2","v":"X"}]
[null,null,null,null,null,null,null,null,null,null,null,null,null,null,null,null,null,null,null,null,null,null,null,null,null,null,"182",1,8,2,{"$f":"V2","v":"X"}]
[null,null,null,null,null,null,null,null,null,null,null,null,null,null,null,null,null,null,null,null,null,null,null,null,null,null,"183",1,8,3,{"$f":"V2","v":"X"}]
[null,null,null,null,null,null,null,null,null,null,null,null,null,null,null,null,null,null,null,null,null,null,null,null,null,null,"184",1,8,4,{"$f":"V2","v":"X"}]
[null,null,null,null,null,null,null,null,null,null,null,null,null,null,null,null,null,null,null,null,null,null,null,null,null,null,"185",1,8,5,{"$f":"W2","v":"Y"}]
[null,null,null,null,null,null,null,null,null,null,null,null,null,null,null,null,null,null,null,null,null,null,null,null,null,null,"186",1,8,6,{"$f":"W2","v":"Y"}]
[null,null,null,null,null,null,null,null,null,null,null,null,null,null,null,null,null,null,null,null,null,null,null,null,null,null,"187",1,8,7,{"$f":"W2","v":"Y"}]
[null,null,null,null,null,null,null,null,null,null,null,null,null,null,null,null,null,null,null,null,null,null,null,null,null,null,"188",1,8,8,{"$f":"W2","v":"Y"}]
[null,null,null,null,null,null,null,null,null,null,null,null,null,null,null,null,null,null,null,null,null,null,null,null,null,null,"189",1,8,9,"NUL"]
[null,null,null,null,null,null,null,null,null,null,null,null,null,null,null,null,null,null,null,null,null,null,null,null,null,null,"191",1,9,1,{"$f":"V2","v":"X"}]
[null,null,null,null,null,null,null,null,null,null,null,null,null,null,null,null,null,null,null,null,null,null,null,null,null,null,"192",1,9,2,{"$f":"V2","v":"X"}]
[null,null,null,null,null,null,null,null,null,null,null,null,null,null,null,null,null,null,null,null,null,null,null,null,null,null,"193",1,9,3,{"$f":"V2","v":"X"}]
[null,null,null,null,null,null,null,null,null,null,null,null,null,null,null,null,null,null,null,null,null,null,null,null,null,null,"194",1,9,4,{"$f":"V2","v":"X"}]
[null,null,null,null,null,null,null,null,null,null,null,null,null,null,null,null,null,null,null,null,null,null,null,null,null,null,"195",1,9,5,"NUL"]
[null,null,null,null,null,null,null,null,null,null,null,null,null,null,null,null,null,null,null,null,null,null,null,null,null,null,"196",1,9,6,{"$f":"W2","v":"Y"}]
[null,null,null,null,null,null,null,null,null,null,null,null,null,null,null,null,null,null,null,null,null,null,null,null,null,null,"197",1,9,7,{"$f":"W2","v":"Y"}]
[null,null,null,null,null,null,null,null,null,null,null,null,null,null,null,null,null,null,null,null,null,null,null,null,null,null,"198",1,9,8,{"$f":"W2","v":"Y"}]
[null,null,null,null,null,null,null,null,null,null,null,null,null,null,null,null,null,null,null,null,null,null,null,null,null,null,"199",1,9,9,{"$f":"W2","v":"Y"}]
[null,null,null,null,null,null,null,null,null,null,null,null,null,null,null,null,null,null,null,null,null,null,null,null,null,null,"211",2,1,1,{"$f":"W2","v":"Y"}]
[null,null,null,null,null,null,null,null,null,null,null,null,null,null,null,null,null,null,null,null,null,null,null,null,null,null,"212",2,1,2,{"$f":"V2","v":"X"}]
[null,null,null,null,null,null,null,null,null,null,null,null,null,null,null,null,null,null,null,null,null,null,null,null,null,null,"213",2,1,3,{"$f":"V2","v":"X"}]
[null,null,null,null,null,null,null,null,null,null,null,null,null,null,null,null,null,null,null,null,null,null,null,null,null,null,"214",2,1,4,{"$f":"V2","v":"X"}]
[null,null,null,null,null,null,null,null,null,null,null,null,null,null,null,null,null,null,null,null,null,null,null,null,null,null,"215",2,1,5,{"$f":"V2","v":"X"}]
[null,null,null,null,null,null,null,null,null,null,null,null,null,null,null,null,null,null,null,null,null,null,null,null,null,null,"216",2,1,6,"NUL"]
[null,null,null,null,null,null,null,null,null,null,null,null,null,null,null,null,null,null,null,null,null,null,null,null,null,null,"217",2,1,7,{"$f":"W2","v":"Y"}]
[null,null,null,null,null,null,null,null,null,null,null,null,null,null,null,null,null,null,null,null,null,null,null,null,null,null,"218",2,1,8,{"$f":"W2","v":"Y"}]
[null,null,null,null,null,null,null,null,null,null,null,null,null,null,null,null,null,null,null,null,null,null,null,null,null,null,"219",2,1,9,{"$f":"W2","v":"Y"}]
[null,null,null,null,null,null,null,null,null,null,null,null,null,null,null,null,null,null,null,null,null,null,null,null,null,null,"221",2,2,1,"NUL"]
[null,null,null,null,null,null,null,null,null,null,null,null,null,null,null,null,null,null,null,null,null,null,null,null,null,null,"223",2,2,3,"NUL"]
[null,null,null,null,null,null,null,null,null,null,null,null,null,null,null,null,null,null,null,null,null,null,null,null,null,null,"224",2,2,4,{"$f":"V2","v":"X"}]
[null,null,null,null,null,null,null,null,null,null,null,null,null,null,null,null,null,null,null,null,null,null,null,null,null,null,"225",2,2,5,{"$f":"W2","v":"Y"}]
[null,null,null,null,null,null,null,null,null,null,null,null,null,null,null,null,null,null,null,null,null,null,null,null,null,null,"226",2,2,6,{"$f":"V2","v":"X"}]
[null,null,null,null,null,null,null,null,null,null,null,null,null,null,null,null,null,null,null,null,null,null,null,null,null,null,"227",2,2,7,{"$f":"V2","v":"X"}]
[null,null,null,null,null,null,null,null,null,null,null,null,null,null,null,null,null,null,null,null,null,null,null,null,null,null,"228",2,2,8,{"$f":"W2","v":"Y"}]
[null,null,null,null,null,null,null,null,null,null,null,null,null,null,null,null,null,null,null,null,null,null,null,null,null,null,"229",2,2,9,{"$f":"V2","v":"X"}]
[null,null,null,null,null,null,null,null,null,null,null,null,null,null,null,null,null,null,null,null,null,null,null,null,null,null,"231",2,3,1,{"$f":"V2","v":"X"}]
[null,null,null,null,null,null,null,null,null,null,null,null,null,null,null,null,null,null,null,null,null,null,null,null,null,null,"232",2,3,2,{"$f":"V2","v":"X"}]
[null,null,null,null,null,null,null,null,null,null,null,null,null,null,null,null,null,null,null,null,null,null,null,null,null,null,"233",2,3,3,{"$f":"W2","v":"Y"}]
[null,null,null,null,null,null,null,null,null,null,null,null,null,null,null,null,null,null,null,null,null,null,null,null,null,null,"234",2,3,4,{"$f":"W2","v":"Y"}]
[null,null,null,null,null,null,null,null,null,null,null,null,null,null,null,null,null,null,null,null,null,null,null,null,null,null,"235",2,3,5,{"$f":"W2","v":"Y"}]
[null,null,null,null,null,null,null,null,null,null,null,null,null,null,null,null,null,null,null,null,null,null,null,null,null,null,"236",2,3,6,{"$f":"W2","v":"Y"}]
[null,null,null,null,null,null,null,null,null,null,null,null,null,null,null,null,null,null,null,null,null,null,null,null,null,null,"237",2,3,7,"NUL"]
[null,null,null,null,null,null,null,null,null,null,null,null,null,null,null,null,null,null,null,null,null,null,null,null,null,null,"238",2,3,8,{"$f":"V2","v":"X"}]
[null,null,null,null,null,null,null,null,null,null,null,null,null,null,null,null,null,null,null,null,null,null,null,null,null,null,"239",2,3,9,{"$f":"V2","v":"X"}]
[null,null,null,null,null,null,null,null,null,null,null,null,null,null,null,null,null,null,null,null,null,null,null,null,null,null,"241",2,4,1,{"$f":"V2","v":"X"}]
[null,null,null,null,null,null,null,null,null,null,null,null,null,null,null,null,null,null,null,null,null,null,null,null,null,null,"242",2,4,2,{"$f":"V2","v":"X"}]
[null,null,null,null,null,null,null,null,null,null,null,null,null,null,null,null,null,null,null,null,null,null,null,null,null,null,"243",2,4,3,"NUL"]
[null,null,null,null,null,null,null,null,null,null,null,null,null,null,null,null,null,null,null,null,null,null,null,null,null,null,"244",2,4,4,{"$f":"W2","v":"Y"}]
[null,null,null,null,null,null,null,null,null,null,null,null,null,null,null,null,null,null,null,null,null,null,null,null,null,null,"245",2,4,5,{"$f":"W2","v":"Y"}]
[null,null,null,null,null,null,null,null,null,null,null,null,null,null,null,null,null,null,null,null,null,null,null,null,null,null,"246",2,4,6,{"$f":"W2","v":"Y"}]
[null,null,null,null,null,null,null,null,null,null,null,null,null,null,null,null,null,null,null,null,null,null,null,null,null,null,"247",2,4,7,{"$f":"W2","v":"Y"}]
[null,null,null,null,null,null,null,null,null,null,null,null,null,null,null,null,null,null,null,null,null,null,null,null,null,null,"248",2,4,8,{"$f":"V2","v":"X"}]
[null,null,null,null,null,null,null,null,null,null,null,null,null,null,null,null,null,null,null,null,null,null,null,null,null,null,"249",2,4,9,{"$f":"V2","v":"X"}]
[null,null,null,null,null,null,null,null,null,null,null,null,null,null,null,null,null,null,null,null,null,null,null,null,null,null,"251",2,5,1,{"$f":"V2","v":"X"}]
[null,null,null,null,null,null,null,null,null,null,null,null,null,null,null,null,null,null,null,null,null,null,null,null,null,null,"252",2,5,2,{"$f":"V2","v":"X"}]
[null,null,null,null,null,null,null,null,null,null,null,null,null,null,null,null,null,null,null,null,null,null,null,null,null,null,"253",2,5,3,{"$f":"V2","v":"X"}]
[null,null,null,null,null,null,null,null,null,null,null,null,null,null,null,null,null,null,null,null,null,null,null,null,null,null,"254",2,5,4,{"$f":"W2","v":"Y"}]
[null,null,null,null,null,null,null,null,null,null,null,null,null,null,null,null,null,null,null,null,null,null,null,null,null,null,"255",2,5,5,{"$f":"W2","v":"Y"}]
[null,null,null,null,null,null,null,null,null,null,null,null,null,null,null,null,null,null,null,null,null,null,null,null,null,null,{"$f":"CONCATENATE(AB131,AC131,AD131)","v":"256"},2,5,6,{"$f":"W2","v":"Y"}]
[null,null,null,null,null,null,null,null,null,null,null,null,null,null,null,null,null,null,null,null,null,null,null,null,null,null,"257",2,5,7,{"$f":"W2","v":"Y"}]
[null,null,null,null,null,null,null,null,null,null,null,null,null,null,null,null,null,null,null,null,null,null,null,null,null,null,"258",2,5,8,"NUL"]
[null,null,null,null,null,null,null,null,null,null,null,null,null,null,null,null,null,null,null,null,null,null,null,null,null,null,"259",2,5,9,{"$f":"V2","v":"X"}]
[null,null,null,null,null,null,null,null,null,null,null,null,null,null,null,null,null,null,null,null,null,null,null,null,null,null,"261",2,6,1,{"$f":"V2","v":"X"}]
[null,null,null,null,null,null,null,null,null,null,null,null,null,null,null,null,null,null,null,null,null,null,null,null,null,null,"262",2,6,2,{"$f":"V2","v":"X"}]
[null,null,null,null,null,null,null,null,null,null,null,null,null,null,null,null,null,null,null,null,null,null,null,null,null,null,"263",2,6,3,{"$f":"V2","v":"X"}]
[null,null,null,null,null,null,null,null,null,null,null,null,null,null,null,null,null,null,null,null,null,null,null,null,null,null,"264",2,6,4,"NUL"]
[null,null,null,null,null,null,null,null,null,null,null,null,null,null,null,null,null,null,null,null,null,null,null,null,null,null,"265",2,6,5,{"$f":"W2","v":"Y"}]
[null,null,null,null,null,null,null,null,null,null,null,null,null,null,null,null,null,null,null,null,null,null,null,null,null,null,"266",2,6,6,{"$f":"W2","v":"Y"}]
[null,null,null,null,null,null,null,null,null,null,null,null,null,null,null,null,null,null,null,null,null,null,null,null,null,null,"267",2,6,7,{"$f":"W2","v":"Y"}]
[null,null,null,null,null,null,null,null,null,null,null,null,null,null,null,null,null,null,null,null,null,null,null,null,null,null,"268",2,6,8,{"$f":"W2","v":"Y"}]
[null,null,null,null,null,null,null,null,null,null,null,null,null,null,null,null,null,null,null,null,null,null,null,null,null,null,"269",2,6,9,{"$f":"W2","v":"Y"}]
[null,null,null,null,null,null,null,null,null,null,null,null,null,null,null,null,null,null,null,null,null,null,null,null,null,null,"271",2,7,1,{"$f":"V2","v":"X"}]
[null,null,null,null,null,null,null,null,null,null,null,null,null,null,null,null,null,null,null,null,null,null,null,null,null,null,"272",2,7,2,{"$f":"V2","v":"X"}]
[null,null,null,null,null,null,null,null,null,null,null,null,null,null,null,null,null,null,null,null,null,null,null,null,null,null,"273",2,7,3,{"$f":"V2","v":"X"}]
[null,null,null,null,null,null,null,null,null,null,null,null,null,null,null,null,null,null,null,null,null,null,null,null,null,null,"274",2,7,4,{"$f":"V2","v":"X"}]
[null,null,null,null,null,null,null,null,null,null,null,null,null,null,null,null,null,null,null,null,null,null,null,null,null,null,"275",2,7,5,{"$f":"W2","v":"Y"}]
[null,null,null,null,null,null,null,null,null,null,null,null,null,null,null,null,null,null,null,null,null,null,null,null,null,null,"276",2,7,6,{"$f":"W2","v":"Y"}]
[null,null,null,null,null,null,null,null,null,null,null,null,null,null,null,null,null,null,null,null,null,null,null,null,null,null,"277",2,7,7,{"$f":"W2","v":"Y"}]
[null,null,null,null,null,null,null,null,null,null,null,null,null,null,null,null,null,null,null,null,null,null,null,null,null,null,"278",2,7,8,{"$f":"W2","v":"Y"}]
[null,null,null,null,null,null,null,null,null,null,null,null,null,null,null,null,null,null,null,null,null,null,null,null,null,null,"279",2,7,9,"NUL"]
[null,null,null,null,null,null,null,null,null,null,null,null,null,null,null,null,null,null,null,null,null,null,null,null,null,null,"281",2,8,1,{"$f":"V2","v":"X"}]
[null,null,null,null,null,null,null,null,null,null,null,null,null,null,null,null,null,null,null,null,null,null,null,null,null,null,"282",2,8,2,{"$f":"V2","v":"X"}]
[null,null,null,null,null,null,null,null,null,null,null,null,null,null,null,null,null,null,null,null,null,null,null,null,null,null,"283",2,8,3,{"$f":"V2","v":"X"}]
[null,null,null,null,null,null,null,null,null,null,null,null,null,null,null,null,null,null,null,null,null,null,null,null,null,null,"284",2,8,4,{"$f":"V2","v":"X"}]
[null,null,null,null,null,null,null,null,null,null,null,null,null,null,null,null,null,null,null,null,null,null,null,null,null,null,"285",2,8,5,"NUL"]
[null,null,null,null,null,null,null,null,null,null,null,null,null,null,null,null,null,null,null,null,null,null,null,null,null,null,"286",2,8,6,{"$f":"W2","v":"Y"}]
[null,null,null,null,null,null,null,null,null,null,null,null,null,null,null,null,null,null,null,null,null,null,null,null,null,null,"287",2,8,7,{"$f":"W2","v":"Y"}]
[null,null,null,null,null,null,null,null,null,null,null,null,null,null,null,null,null,null,null,null,null,null,null,null,null,null,"288",2,8,8,{"$f":"W2","v":"Y"}]
[null,null,null,null,null,null,null,null,null,null,null,null,null,null,null,null,null,null,null,null,null,null,null,null,null,null,"289",2,8,9,{"$f":"W2","v":"Y"}]
[null,null,null,null,null,null,null,null,null,null,null,null,null,null,null,null,null,null,null,null,null,null,null,null,null,null,"291",2,9,1,"NUL"]
[null,null,null,null,null,null,null,null,null,null,null,null,null,null,null,null,null,null,null,null,null,null,null,null,null,null,"292",2,9,2,{"$f":"V2","v":"X"}]
[null,null,null,null,null,null,null,null,null,null,null,null,null,null,null,null,null,null,null,null,null,null,null,null,null,null,"293",2,9,3,{"$f":"V2","v":"X"}]
[null,null,null,null,null,null,null,null,null,null,null,null,null,null,null,null,null,null,null,null,null,null,null,null,null,null,"294",2,9,4,{"$f":"V2","v":"X"}]
[null,null,null,null,null,null,null,null,null,null,null,null,null,null,null,null,null,null,null,null,null,null,null,null,null,null,"295",2,9,5,{"$f":"V2","v":"X"}]
[null,null,null,null,null,null,null,null,null,null,null,null,null,null,null,null,null,null,null,null,null,null,null,null,null,null,"296",2,9,6,{"$f":"W2","v":"Y"}]
[null,null,null,null,null,null,null,null,null,null,null,null,null,null,null,null,null,null,null,null,null,null,null,null,null,null,"297",2,9,7,{"$f":"W2","v":"Y"}]
[null,null,null,null,null,null,null,null,null,null,null,null,null,null,null,null,null,null,null,null,null,null,null,null,null,null,"298",2,9,8,{"$f":"W2","v":"Y"}]
[null,null,null,null,null,null,null,null,null,null,null,null,null,null,null,null,null,null,null,null,null,null,null,null,null,null,"299",2,9,9,{"$f":"W2","v":"Y"}]
[null,null,null,null,null,null,null,null,null,null,null,null,null,null,null,null,null,null,null,null,null,null,null,null,null,null,"311",3,1,1,{"$f":"W2","v":"Y"}]
[null,null,null,null,null,null,null,null,null,null,null,null,null,null,null,null,null,null,null,null,null,null,null,null,null,null,"312",3,1,2,"NUL"]
[null,null,null,null,null,null,null,null,null,null,null,null,null,null,null,null,null,null,null,null,null,null,null,null,null,null,"313",3,1,3,{"$f":"V2","v":"X"}]
[null,null,null,null,null,null,null,null,null,null,null,null,null,null,null,null,null,null,null,null,null,null,null,null,null,null,"314",3,1,4,{"$f":"V2","v":"X"}]
[null,null,null,null,null,null,null,null,null,null,null,null,null,null,null,null,null,null,null,null,null,null,null,null,null,null,"315",3,1,5,{"$f":"V2","v":"X"}]
[null,null,null,null,null,null,null,null,null,null,null,null,null,null,null,null,null,null,null,null,null,null,null,null,null,null,"316",3,1,6,{"$f":"V2","v":"X"}]
[null,null,null,null,null,null,null,null,null,null,null,null,null,null,null,null,null,null,null,null,null,null,null,null,null,null,"317",3,1,7,{"$f":"W2","v":"Y"}]
[null,null,null,null,null,null,null,null,null,null,null,null,null,null,null,null,null,null,null,null,null,null,null,null,null,null,"318",3,1,8,{"$f":"W2","v":"Y"}]
[null,null,null,null,null,null,null,null,null,null,null,null,null,null,null,null,null,null,null,null,null,null,null,null,null,null,"319",3,1,9,{"$f":"W2","v":"Y"}]
[null,null,null,null,null,null,null,null,null,null,null,null,null,null,null,null,null,null,null,null,null,null,null,null,null,null,"321",3,2,1,{"$f":"W2","v":"Y"}]
[null,null,null,null,null,null,null,null,null,null,null,null,null,null,null,null,null,null,null,null,null,null,null,null,null,null,"322",3,2,2,{"$f":"W2","v":"Y"}]
[null,null,null,null,null,null,null,null,null,null,null,null,null,null,null,null,null,null,null,null,null,null,null,null,null,null,"323",3,2,3,{"$f":"V2","v":"X"}]
[null,null,null,null,null,null,null,null,null,null,null,null,null,null,null,null,null,null,null,null,null,null,null,null,null,null,"324",3,2,4,{"$f":"V2","v":"X"}]
[null,null,null,null,null,null,null,null,null,null,null,null,null,null,null,null,null,null,null,null,null,null,null,null,null,null,"325",3,2,5,{"$f":"V2","v":"X"}]
[null,null,null,null,null,null,null,null,null,null,null,null,null,null,null,null,null,null,null,null,null,null,null,null,null,null,"326",3,2,6,{"$f":"V2","v":"X"}]
[null,null,null,null,null,null,null,null,null,null,null,null,null,null,null,null,null,null,null,null,null,null,null,null,null,null,"327",3,2,7,"NUL"]
[null,null,null,null,null,null,null,null,null,null,null,null,null,null,null,null,null,null,null,null,null,null,null,null,null,null,"328",3,2,8,{"$f":"W2","v":"Y"}]
[null,null,null,null,null,null,null,null,null,null,null,null,null,null,null,null,null,null,null,null,null,null,null,null,null,null,"329",3,2,9,{"$f":"W2","v":"Y"}]
[null,null,null,null,null,null,null,null,null,null,null,null,null,null,null,null,null,null,null,null,null,null,null,null,null,null,"331",3,3,1,{"$f":"V2","v":"X"}]
[null,null,null,null,null,null,null,null,null,null,null,null,null,null,null,null,null,null,null,null,null,null,null,null,null,null,"332",3,3,2,"NUL"]
[null,null,null,null,null,null,null,null,null,null,null,null,null,null,null,null,null,null,null,null,null,null,null,null,null,null,"334",3,3,4,"NUL"]
[null,null,null,null,null,null,null,null,null,null,null,null,null,null,null,null,null,null,null,null,null,null,null,null,null,null,"335",3,3,5,{"$f":"V2","v":"X"}]
[null,null,null,null,null,null,null,null,null,null,null,null,null,null,null,null,null,null,null,null,null,null,null,null,null,null,"336",3,3,6,{"$f":"W2","v":"Y"}]
[null,null,null,null,null,null,null,null,null,null,null,null,null,null,null,null,null,null,null,null,null,null,null,null,null,null,"337",3,3,7,{"$f":"V2","v":"X"}]
[null,null,null,null,null,null,null,null,null,null,null,null,null,null,null,null,null,null,null,null,null,null,null,null,null,null,{"$f":"CONCATENATE(AB195,AC195,AD195)","v":"338"},3,3,8,{"$f":"V2","v":"X"}]
[null,null,null,null,null,null,null,null,null,null,null,null,null,null,null,null,null,null,null,null,null,null,null,null,null,null,"339",3,3,9,{"$f":"W2","v":"Y"}]
[null,null,null,null,null,null,null,null,null,null,null,null,null,null,null,null,null,null,null,null,null,null,null,null,null,null,"341",3,4,1,{"$f":"V2","v":"X"}]
[null,null,null,null,null,null,null,null,null,null,null,null,null,null,null,null,null,null,null,null,null,null,null,null,null,null,"342",3,4,2,{"$f":"V2","v":"X"}]
[null,null,null,null,null,null,null,null,null,null,null,null,null,null,null,null,null,null,null,null,null,null,null,null,null,null,"343",3,4,3,{"$f":"V2","v":"X"}]
[null,null,null,null,null,null,null,null,null,null,null,null,null,null,null,null,null,null,null,null,null,null,null,null,null,null,"344",3,4,4,{"$f":"W2","v":"Y"}]
[null,null,null,null,null,null,null,null,null,null,null,null,null,null,null,null,null,null,null,null,null,null,null,null,null,null,"345",3,4,5,{"$f":"W2","v":"Y"}]
[null,null,null,null,null,null,null,null,null,null,null,null,null,null,null,null,null,null,null,null,null,null,null,null,null,null,"346",3,4,6,{"$f":"W2","v":"Y"}]
[null,null,null,null,null,null,null,null,null,null,null,null,null,null,null,null,null,null,null,null,null,null,null,null,null,null,"347",3,4,7,{"$f":"W2","v":"Y"}]
[null,null,null,null,null,null,null,null,null,null,null,null,null,null,null,null,null,null,null,null,null,null,null,null,null,null,"348",3,4,8,"NUL"]
[null,null,null,null,null,null,null,null,null,null,null,null,null,null,null,null,null,null,null,null,null,null,null,null,null,null,"349",3,4,9,{"$f":"V2","v":"X"}]
[null,null,null,null,null,null,null,null,null,null,null,null,null,null,null,null,null,null,null,null,null,null,null,null,null,null,"351",3,5,1,{"$f":"V2","v":"X"}]
[null,null,null,null,null,null,null,null,null,null,null,null,null,null,null,null,null,null,null,null,null,null,null,null,null,null,"352",3,5,2,{"$f":"V2","v":"X"}]
[null,null,null,null,null,null,null,null,null,null,null,null,null,null,null,null,null,null,null,null,null,null,null,null,null,null,"353",3,5,3,{"$f":"V2","v":"X"}]
[null,null,null,null,null,null,null,null,null,null,null,null,null,null,null,null,null,null,null,null,null,null,null,null,null,null,"354",3,5,4,"NUL"]
[null,null,null,null,null,null,null,null,null,null,null,null,null,null,null,null,null,null,null,null,null,null,null,null,null,null,"355",3,5,5,{"$f":"W2","v":"Y"}]
[null,null,null,null,null,null,null,null,null,null,null,null,null,null,null,null,null,null,null,null,null,null,null,null,null,null,"356",3,5,6,{"$f":"W2","v":"Y"}]
[null,null,null,null,null,null,null,null,null,null,null,null,null,null,null,null,null,null,null,null,null,null,null,null,null,null,"357",3,5,7,{"$f":"W2","v":"Y"}]
[null,null,null,null,null,null,null,null,null,null,null,null,null,null,null,null,null,null,null,null,null,null,null,null,null,null,"358",3,5,8,{"$f":"W2","v":"Y"}]
[null,null,null,null,null,null,null,null,null,null,null,null,null,null,null,null,null,null,null,null,null,null,null,null,null,null,"359",3,5,9,{"$f":"V2","v":"X"}]
[null,null,null,null,null,null,null,null,null,null,null,null,null,null,null,null,null,null,null,null,null,null,null,null,null,null,"361",3,6,1,{"$f":"V2","v":"X"}]
[null,null,null,null,null,null,null,null,null,null,null,null,null,null,null,null,null,null,null,null,null,null,null,null,null,null,"362",3,6,2,{"$f":"V2","v":"X"}]
[null,null,null,null,null,null,null,null,null,null,null,null,null,null,null,null,null,null,null,null,null,null,null,null,null,null,"363",3,6,3,{"$f":"V2","v":"X"}]
[null,null,null,null,null,null,null,null,null,null,null,null,null,null,null,null,null,null,null,null,null,null,null,null,null,null,"364",3,6,4,{"$f":"V2","v":"X"}]
[null,null,null,null,null,null,null,null,null,null,null,null,null,null,null,null,null,null,null,null,null,null,null,null,null,null,"365",3,6,5,{"$f":"W2","v":"Y"}]
[null,null,null,null,null,null,null,null,null,null,null,null,null,null,null,null,null,null,null,null,null,null,null,null,null,null,"366",3,6,6,{"$f":"W2","v":"Y"}]
[null,null,null,null,null,null,null,null,null,null,null,null,null,null,null,null,null,null,null,null,null,null,null,null,null,null,"367",3,6,7,{"$f":"W2","v":"Y"}]
[null,null,null,null,null,null,null,null,null,null,null,null,null,null,null,null,null,null,null,null,null,null,null,null,null,null,"368",3,6,8,{"$f":"W2","v":"Y"}]
[null,null,null,null,null,null,null,null,null,null,null,null,null,null,null,null,null,null,null,null,null,null,null,null,null,null,"369",3,6,9,"NUL"]
[null,null,null,null,null,null,null,null,null,null,null,null,null,null,null,null,null,null,null,null,null,null,null,null,null,null,"371",3,7,1,{"$f":"V2","v":"X"}]
[null,null,null,null,null,null,null,null,null,null,null,null,null,null,null,null,null,null,null,null,null,null,null,null,null,null,"372",3,7,2,{"$f":"V2","v":"X"}]
[null,null,null,null,null,null,null,null,null,null,null,null,null,null,null,null,null,null,null,null,null,null,null,null,null,null,"373",3,7,3,{"$f":"V2","v":"X"}]
[null,null,null,null,null,null,null,null,null,null,null,null,null,null,null,null,null,null,null,null,null,null,null,null,null,null,"374",3,7,4,{"$f":"V2","v":"X"}]
[null,null,null,null,null,null,null,null,null,null,null,null,null,null,null,null,null,null,null,null,null,null,null,null,null,null,"375",3,7,5,"NUL"]
[null,null,null,null,null,null,null,null,null,null,null,null,null,null,null,null,null,null,null,null,null,null,null,null,null,null,"376",3,7,6,{"$f":"W2","v":"Y"}]
[null,null,null,null,null,null,null,null,null,null,null,null,null,null,null,null,null,null,null,null,null,null,null,null,null,null,"377",3,7,7,{"$f":"W2","v":"Y"}]
[null,null,null,null,null,null,null,null,null,null,null,null,null,null,null,null,null,null,null,null,null,null,null,null,null,null,"378",3,7,8,{"$f":"W2","v":"Y"}]
[null,null,null,null,null,null,null,null,null,null,null,null,null,null,null,null,null,null,null,null,null,null,null,null,null,null,"379",3,7,9,{"$f":"W2","v":"Y"}]
[null,null,null,null,null,null,null,null,null,null,null,null,null,null,null,null,null,null,null,null,null,null,null,null,null,null,"381",3,8,1,"NUL"]
[null,null,null,null,null,null,null,null,null,null,null,null,null,null,null,null,null,null,null,null,null,null,null,null,null,null,"382",3,8,2,{"$f":"V2","v":"X"}]
[null,null,null,null,null,null,null,null,null,null,null,null,null,null,null,null,null,null,null,null,null,null,null,null,null,null,"383",3,8,3,{"$f":"V2","v":"X"}]
[null,null,null,null,null,null,null,null,null,null,null,null,null,null,null,null,null,null,null,null,null,null,null,null,null,null,"384",3,8,4,{"$f":"V2","v":"X"}]
[null,null,null,null,null,null,null,null,null,null,null,null,null,null,null,null,null,null,null,null,null,null,null,null,null,null,"385",3,8,5,{"$f":"V2","v":"X"}]
[null,null,null,null,null,null,null,null,null,null,null,null,null,null,null,null,null,null,null,null,null,null,null,null,null,null,"386",3,8,6,{"$f":"W2","v":"Y"}]
[null,null,null,null,null,null,null,null,null,null,null,null,null,null,null,null,null,null,null,null,null,null,null,null,null,null,"387",3,8,7,{"$f":"W2","v":"Y"}]
[null,null,null,null,null,null,null,null,null,null,null,null,null,null,null,null,null,null,null,null,null,null,null,null,null,null,"388",3,8,8,{"$f":"W2","v":"Y"}]
[null,null,null,null,null,null,null,null,null,null,null,null,null,null,null,null,null,null,null,null,null,null,null,null,null,null,"389",3,8,9,{"$f":"W2","v":"Y"}]
[null,null,null,null,null,null,null,null,null,null,null,null,null,null,null,null,null,null,null,null,null,null,null,null,null,null,"391",3,9,1,{"$f":"W2","v":"Y"}]
[null,null,null,null,null,null,null,null,null,null,null,null,null,null,null,null,null,null,null,null,null,null,null,null,null,null,"392",3,9,2,{"$f":"W2","v":"Y"}]
[null,null,null,null,null,null,null,null,null,null,null,null,null,null,null,null,null,null,null,null,null,null,null,null,null,null,"393",3,9,3,{"$f":"V2","v":"X"}]
[null,null,null,null,null,null,null,null,null,null,null,null,null,null,null,null,null,null,null,null,null,null,null,null,null,null,"394",3,9,4,{"$f":"V2","v":"X"}]
[null,null,null,null,null,null,null,null,null,null,null,null,null,null,null,null,null,null,null,null,null,null,null,null,null,null,"395",3,9,5,{"$f":"V2","v":"X"}]
[null,null,null,null,null,null,null,null,null,null,null,null,null,null,null,null,null,null,null,null,null,null,null,null,null,null,"396",3,9,6,"NUL"]
[null,null,null,null,null,null,null,null,null,null,null,null,null,null,null,null,null,null,null,null,null,null,null,null,null,null,"397",3,9,7,{"$f":"W2","v":"Y"}]
[null,null,null,null,null,null,null,null,null,null,null,null,null,null,null,null,null,null,null,null,null,null,null,null,null,null,"398",3,9,8,{"$f":"W2","v":"Y"}]
[null,null,null,null,null,null,null,null,null,null,null,null,null,null,null,null,null,null,null,null,null,null,null,null,null,null,"399",3,9,9,{"$f":"W2","v":"Y"}]
[null,null,null,null,null,null,null,null,null,null,null,null,null,null,null,null,null,null,null,null,null,null,null,null,null,null,"411",4,1,1,{"$f":"W2","v":"Y"}]
[null,null,null,null,null,null,null,null,null,null,null,null,null,null,null,null,null,null,null,null,null,null,null,null,null,null,"412",4,1,2,{"$f":"W2","v":"Y"}]
[null,null,null,null,null,null,null,null,null,null,null,null,null,null,null,null,null,null,null,null,null,null,null,null,null,null,"413",4,1,3,{"$f":"W2","v":"Y"}]
[null,null,null,null,null,null,null,null,null,null,null,null,null,null,null,null,null,null,null,null,null,null,null,null,null,null,"414",4,1,4,{"$f":"V2","v":"X"}]
[null,null,null,null,null,null,null,null,null,null,null,null,null,null,null,null,null,null,null,null,null,null,null,null,null,null,"415",4,1,5,{"$f":"V2","v":"X"}]
[null,null,null,null,null,null,null,null,null,null,null,null,null,null,null,null,null,null,null,null,null,null,null,null,null,null,"416",4,1,6,{"$f":"V2","v":"X"}]
[null,null,null,null,null,null,null,null,null,null,null,null,null,null,null,null,null,null,null,null,null,null,null,null,null,null,"417",4,1,7,"NUL"]
[null,null,null,null,null,null,null,null,null,null,null,null,null,null,null,null,null,null,null,null,null,null,null,null,null,null,"418",4,1,8,{"$f":"W2","v":"Y"}]
[null,null,null,null,null,null,null,null,null,null,null,null,null,null,null,null,null,null,null,null,null,null,null,null,null,null,{"$f":"CONCATENATE(AB259,AC259,AD259)","v":"419"},4,1,9,{"$f":"W2","v":"Y"}]
[null,null,null,null,null,null,null,null,null,null,null,null,null,null,null,null,null,null,null,null,null,null,null,null,null,null,"421",4,2,1,{"$f":"W2","v":"Y"}]
[null,null,null,null,null,null,null,null,null,null,null,null,null,null,null,null,null,null,null,null,null,null,null,null,null,null,"422",4,2,2,{"$f":"W2","v":"Y"}]
[null,null,null,null,null,null,null,null,null,null,null,null,null,null,null,null,null,null,null,null,null,null,null,null,null,null,"423",4,2,3,"NUL"]
[null,null,null,null,null,null,null,null,null,null,null,null,null,null,null,null,null,null,null,null,null,null,null,null,null,null,"424",4,2,4,{"$f":"V2","v":"X"}]
[null,null,null,null,null,null,null,null,null,null,null,null,null,null,null,null,null,null,null,null,null,null,null,null,null,null,"425",4,2,5,{"$f":"V2","v":"X"}]
[null,null,null,null,null,null,null,null,null,null,null,null,null,null,null,null,null,null,null,null,null,null,null,null,null,null,"426",4,2,6,{"$f":"V2","v":"X"}]
[null,null,null,null,null,null,null,null,null,null,null,null,null,null,null,null,null,null,null,null,null,null,null,null,null,null,"427",4,2,7,{"$f":"V2","v":"X"}]
[null,null,null,null,null,null,null,null,null,null,null,null,null,null,null,null,null,null,null,null,null,null,null,null,null,null,"428",4,2,8,{"$f":"W2","v":"Y"}]
[null,null,null,null,null,null,null,null,null,null,null,null,null,null,null,null,null,null,null,null,null,null,null,null,null,null,"429",4,2,9,{"$f":"W2","v":"Y"}]
[null,null,null,null,null,null,null,null,null,null,null,null,null,null,null,null,null,null,null,null,null,null,null,null,null,null,"431",4,3,1,{"$f":"W2","v":"Y"}]
[null,null,null,null,null,null,null,null,null,null,null,null,null,null,null,null,null,null,null,null,null,null,null,null,null,null,"432",4,3,2,{"$f":"W2","v":"Y"}]
[null,null,null,null,null,null,null,null,null,null,null,null,null,null,null,null,null,null,null,null,null,null,null,null,null,null,"433",4,3,3,{"$f":"W2","v":"Y"}]
[null,null,null,null,null,null,null,null,null,null,null,null,null,null,null,null,null,null,null,null,null,null,null,null,null,null,"434",4,3,4,{"$f":"V2","v":"X"}]
[null,null,null,null,null,null,null,null,null,null,null,null,null,null,null,null,null,null,null,null,null,null,null,null,null,null,"435",4,3,5,{"$f":"V2","v":"X"}]
[null,null,null,null,null,null,null,null,null,null,null,null,null,null,null,null,null,null,null,null,null,null,null,null,null,null,"436",4,3,6,{"$f":"V2","v":"X"}]
[null,null,null,null,null,null,null,null,null,null,null,null,null,null,null,null,null,null,null,null,null,null,null,null,null,null,"437",4,3,7,{"$f":"V2","v":"X"}]
[null,null,null,null,null,null,null,null,null,null,null,null,null,null,null,null,null,null,null,null,null,null,null,null,null,null,"438",4,3,8,"NUL"]
[null,null,null,null,null,null,null,null,null,null,null,null,null,null,null,null,null,null,null,null,null,null,null,null,null,null,"439",4,3,9,{"$f":"W2","v":"Y"}]
[null,null,null,null,null,null,null,null,null,null,null,null,null,null,null,null,null,null,null,null,null,null,null,null,null,null,"441",4,4,1,{"$f":"V2","v":"X"}]
[null,null,null,null,null,null,null,null,null,null,null,null,null,null,null,null,null,null,null,null,null,null,null,null,null,null,"442",4,4,2,{"$f":"V2","v":"X"}]
[null,null,null,null,null,null,null,null,null,null,null,null,null,null,null,null,null,null,null,null,null,null,null,null,null,null,"443",4,4,3,"NUL"]
[null,null,null,null,null,null,null,null,null,null,null,null,null,null,null,null,null,null,null,null,null,null,null,null,null,null,"445",4,4,5,"NUL"]
[null,null,null,null,null,null,null,null,null,null,null,null,null,null,null,null,null,null,null,null,null,null,null,null,null,null,"446",4,4,6,{"$f":"V2","v":"X"}]
[null,null,null,null,null,null,null,null,null,null,null,null,null,null,null,null,null,null,null,null,null,null,null,null,null,null,"447",4,4,7,{"$f":"W2","v":"Y"}]
[null,null,null,null,null,null,null,null,null,null,null,null,null,null,null,null,null,null,null,null,null,null,null,null,null,null,"448",4,4,8,{"$f":"V2","v":"X"}]
[null,null,null,null,null,null,null,null,null,null,null,null,null,null,null,null,null,null,null,null,null,null,null,null,null,null,"449",4,4,9,{"$f":"V2","v":"X"}]
[null,null,null,null,null,null,null,null,null,null,null,null,null,null,null,null,null,null,null,null,null,null,null,null,null,null,"451",4,5,1,{"$f":"V2","v":"X"}]
[null,null,null,null,null,null,null,null,null,null,null,null,null,null,null,null,null,null,null,null,null,null,null,null,null,null,"452",4,5,2,{"$f":"V2","v":"X"}]
[null,null,null,null,null,null,null,null,null,null,null,null,null,null,null,null,null,null,null,null,null,null,null,null,null,null,"453",4,5,3,{"$f":"V2","v":"X"}]
[null,null,null,null,null,null,null,null,null,null,null,null,null,null,null,null,null,null,null,null,null,null,null,null,null,null,"454",4,5,4,{"$f":"V2","v":"X"}]
[null,null,null,null,null,null,null,null,null,null,null,null,null,null,null,null,null,null,null,null,null,null,null,null,null,null,"455",4,5,5,{"$f":"W2","v":"Y"}]
[null,null,null,null,null,null,null,null,null,null,null,null,null,null,null,null,null,null,null,null,null,null,null,null,null,null,"456",4,5,6,{"$f":"W2","v":"Y"}]
[null,null,null,null,null,null,null,null,null,null,null,null,null,null,null,null,null,null,null,null,null,null,null,null,null,null,"457",4,5,7,{"$f":"W2","v":"Y"}]
[null,null,null,null,null,null,null,null,null,null,null,null,null,null,null,null,null,null,null,null,null,null,null,null,null,null,"458",4,5,8,{"$f":"W2","v":"Y"}]
[null,null,null,null,null,null,null,null,null,null,null,null,null,null,null,null,null,null,null,null,null,null,null,null,null,null,"459",4,5,9,"NUL"]
[null,null,null,null,null,null,null,null,null,null,null,null,null,null,null,null,null,null,null,null,null,null,null,null,null,null,"461",4,6,1,{"$f":"V2","v":"X"}]
[null,null,null,null,null,null,null,null,null,null,null,null,null,null,null,null,null,null,null,null,null,null,null,null,null,null,"462",4,6,2,{"$f":"V2","v":"X"}]
[null,null,null,null,null,null,null,null,null,null,null,null,null,null,null,null,null,null,null,null,null,null,null,null,null,null,"463",4,6,3,{"$f":"V2","v":"X"}]
[null,null,null,null,null,null,null,null,null,null,null,null,null,null,null,null,null,null,null,null,null,null,null,null,null,null,"464",4,6,4,{"$f":"V2","v":"X"}]
[null,null,null,null,null,null,null,null,null,null,null,null,null,null,null,null,null,null,null,null,null,null,null,null,null,null,"465",4,6,5,"NUL"]
[null,null,null,null,null,null,null,null,null,null,null,null,null,null,null,null,null,null,null,null,null,null,null,null,null,null,"466",4,6,6,{"$f":"W2","v":"Y"}]
[null,null,null,null,null,null,null,null,null,null,null,null,null,null,null,null,null,null,null,null,null,null,null,null,null,null,"467",4,6,7,{"$f":"W2","v":"Y"}]
[null,null,null,null,null,null,null,null,null,null,null,null,null,null,null,null,null,null,null,null,null,null,null,null,null,null,"468",4,6,8,{"$f":"W2","v":"Y"}]
[null,null,null,null,null,null,null,null,null,null,null,null,null,null,null,null,null,null,null,null,null,null,null,null,null,null,"469",4,6,9,{"$f":"W2","v":"Y"}]
[null,null,null,null,null,null,null,null,null,null,null,null,null,null,null,null,null,null,null,null,null,null,null,null,null,null,"471",4,7,1,"NUL"]
[null,null,null,null,null,null,null,null,null,null,null,null,null,null,null,null,null,null,null,null,null,null,null,null,null,null,"472",4,7,2,{"$f":"V2","v":"X"}]
[null,null,null,null,null,null,null,null,null,null,null,null,null,null,null,null,null,null,null,null,null,null,null,null,null,null,"473",4,7,3,{"$f":"V2","v":"X"}]
[null,null,null,null,null,null,null,null,null,null,null,null,null,null,null,null,null,null,null,null,null,null,null,null,null,null,"474",4,7,4,{"$f":"V2","v":"X"}]
[null,null,null,null,null,null,null,null,null,null,null,null,null,null,null,null,null,null,null,null,null,null,null,null,null,null,"475",4,7,5,{"$f":"W2","v":"Y"}]
[null,null,null,null,null,null,null,null,null,null,null,null,null,null,null,null,null,null,null,null,null,null,null,null,null,null,"476",4,7,6,{"$f":"W2","v":"Y"}]
[null,null,null,null,null,null,null,null,null,null,null,null,null,null,null,null,null,null,null,null,null,null,null,null,null,null,"477",4,7,7,{"$f":"W2","v":"Y"}]
[null,null,null,null,null,null,null,null,null,null,null,null,null,null,null,null,null,null,null,null,null,null,null,null,null,null,"478",4,7,8,{"$f":"W2","v":"Y"}]
[null,null,null,null,null,null,null,null,null,null,null,null,null,null,null,null,null,null,null,null,null,null,null,null,null,null,"479",4,7,9,{"$f":"W2","v":"Y"}]
[null,null,null,null,null,null,null,null,null,null,null,null,null,null,null,null,null,null,null,null,null,null,null,null,null,null,"481",4,8,1,{"$f":"W2","v":"Y"}]
[null,null,null,null,null,null,null,null,null,null,null,null,null,null,null,null,null,null,null,null,null,null,null,null,null,null,"482",4,8,2,{"$f":"V2","v":"X"}]
[null,null,null,null,null,null,null,null,null,null,null,null,null,null,null,null,null,null,null,null,null,null,null,null,null,null,"483",4,8,3,{"$f":"V2","v":"X"}]
[null,null,null,null,null,null,null,null,null,null,null,null,null,null,null,null,null,null,null,null,null,null,null,null,null,null,"484",4,8,4,{"$f":"V2","v":"X"}]
[null,null,null,null,null,null,null,null,null,null,null,null,null,null,null,null,null,null,null,null,null,null,null,null,null,null,"485",4,8,5,{"$f":"V2","v":"X"}]
[null,null,null,null,null,null,null,null,null,null,null,null,null,null,null,null,null,null,null,null,null,null,null,null,null,null,"486",4,8,6,"NUL"]
[null,null,null,null,null,null,null,null,null,null,null,null,null,null,null,null,null,null,null,null,null,null,null,null,null,null,"487",4,8,7,{"$f":"W2","v":"Y"}]
[null,null,null,null,null,null,null,null,null,null,null,null,null,null,null,null,null,null,null,null,null,null,null,null,null,null,"488",4,8,8,{"$f":"W2","v":"Y"}]
[null,null,null,null,null,null,null,null,null,null,null,null,null,null,null,null,null,null,null,null,null,null,null,null,null,null,"489",4,8,9,{"$f":"W2","v":"Y"}]
[null,null,null,null,null,null,null,null,null,null,null,null,null,null,null,null,null,null,null,null,null,null,null,null,null,null,"491",4,9,1,{"$f":"W2","v":"Y"}]
[null,null,null,null,null,null,null,null,null,null,null,null,null,null,null,null,null,null,null,null,null,null,null,null,null,null,{"$f":"CONCATENATE(AB323,AC323,AD323)","v":"492"},4,9,2,"NUL"]
[null,null,null,null,null,null,null,null,null,null,null,null,null,null,null,null,null,null,null,null,null,null,null,null,null,null,"493",4,9,3,{"$f":"V2","v":"X"}]
[null,null,null,null,null,null,null,null,null,null,null,null,null,null,null,null,null,null,null,null,null,null,null,null,null,null,"494",4,9,4,{"$f":"V2","v":"X"}]
[null,null,null,null,null,null,null,null,null,null,null,null,null,null,null,null,null,null,null,null,null,null,null,null,null,null,"495",4,9,5,{"$f":"V2","v":"X"}]
[null,null,null,null,null,null,null,null,null,null,null,null,null,null,null,null,null,null,null,null,null,null,null,null,null,null,"496",4,9,6,{"$f":"V2","v":"X"}]
[null,null,null,null,null,null,null,null,null,null,null,null,null,null,null,null,null,null,null,null,null,null,null,null,null,null,"497",4,9,7,{"$f":"W2","v":"Y"}]
[null,null,null,null,null,null,null,null,null,null,null,null,null,null,null,null,null,null,null,null,null,null,null,null,null,null,"498",4,9,8,{"$f":"W2","v":"Y"}]
[null,null,null,null,null,null,null,null,null,null,null,null,null,null,null,null,null,null,null,null,null,null,null,null,null,null,"499",4,9,9,{"$f":"W2","v":"Y"}]
[null,null,null,null,null,null,null,null,null,null,null,null,null,null,null,null,null,null,null,null,null,null,null,null,null,null,"511",5,1,1,{"$f":"W2","v":"Y"}]
[null,null,null,null,null,null,null,null,null,null,null,null,null,null,null,null,null,null,null,null,null,null,null,null,null,null,"512",5,1,2,{"$f":"W2","v":"Y"}]
[null,null,null,null,null,null,null,null,null,null,null,null,null,null,null,null,null,null,null,null,null,null,null,null,null,null,"513",5,1,3,"NUL"]
[null,null,null,null,null,null,null,null,null,null,null,null,null,null,null,null,null,null,null,null,null,null,null,null,null,null,"514",5,1,4,{"$f":"V2","v":"X"}]
[null,null,null,null,null,null,null,null,null,null,null,null,null,null,null,null,null,null,null,null,null,null,null,null,null,null,"515",5,1,5,{"$f":"V2","v":"X"}]
[null,null,null,null,null,null,null,null,null,null,null,null,null,null,null,null,null,null,null,null,null,null,null,null,null,null,"516",5,1,6,{"$f":"V2","v":"X"}]
[null,null,null,null,null,null,null,null,null,null,null,null,null,null,null,null,null,null,null,null,null,null,null,null,null,null,"517",5,1,7,{"$f":"V2","v":"X"}]
[null,null,null,null,null,null,null,null,null,null,null,null,null,null,null,null,null,null,null,null,null,null,null,null,null,null,"518",5,1,8,{"$f":"W2","v":"Y"}]
[null,null,null,null,null,null,null,null,null,null,null,null,null,null,null,null,null,null,null,null,null,null,null,null,null,null,"519",5,1,9,{"$f":"W2","v":"Y"}]
[null,null,null,null,null,null,null,null,null,null,null,null,null,null,null,null,null,null,null,null,null,null,null,null,null,null,"521",5,2,1,{"$f":"W2","v":"Y"}]
[null,null,null,null,null,null,null,null,null,null,null,null,null,null,null,null,null,null,null,null,null,null,null,null,null,null,"522",5,2,2,{"$f":"W2","v":"Y"}]
[null,null,null,null,null,null,null,null,null,null,null,null,null,null,null,null,null,null,null,null,null,null,null,null,null,null,"523",5,2,3,{"$f":"W2","v":"Y"}]
[null,null,null,null,null,null,null,null,null,null,null,null,null,null,null,null,null,null,null,null,null,null,null,null,null,null,"524",5,2,4,{"$f":"W2","v":"Y"}]
[null,null,null,null,null,null,null,null,null,null,null,null,null,null,null,null,null,null,null,null,null,null,null,null,null,null,"525",5,2,5,{"$f":"V2","v":"X"}]
[null,null,null,null,null,null,null,null,null,null,null,null,null,null,null,null,null,null,null,null,null,null,null,null,null,null,"526",5,2,6,{"$f":"V2","v":"X"}]
[null,null,null,null,null,null,null,null,null,null,null,null,null,null,null,null,null,null,null,null,null,null,null,null,null,null,"527",5,2,7,{"$f":"V2","v":"X"}]
[null,null,null,null,null,null,null,null,null,null,null,null,null,null,null,null,null,null,null,null,null,null,null,null,null,null,"528",5,2,8,"NUL"]
[null,null,null,null,null,null,null,null,null,null,null,null,null,null,null,null,null,null,null,null,null,null,null,null,null,null,"529",5,2,9,{"$f":"W2","v":"Y"}]
[null,null,null,null,null,null,null,null,null,null,null,null,null,null,null,null,null,null,null,null,null,null,null,null,null,null,"531",5,3,1,{"$f":"W2","v":"Y"}]
[null,null,null,null,null,null,null,null,null,null,null,null,null,null,null,null,null,null,null,null,null,null,null,null,null,null,"532",5,3,2,{"$f":"W2","v":"Y"}]
[null,null,null,null,null,null,null,null,null,null,null,null,null,null,null,null,null,null,null,null,null,null,null,null,null,null,"533",5,3,3,{"$f":"W2","v":"Y"}]
[null,null,null,null,null,null,null,null,null,null,null,null,null,null,null,null,null,null,null,null,null,null,null,null,null,null,"534",5,3,4,"NUL"]
[null,null,null,null,null,null,null,null,null,null,null,null,null,null,null,null,null,null,null,null,null,null,null,null,null,null,"535",5,3,5,{"$f":"V2","v":"X"}]
[null,null,null,null,null,null,null,null,null,null,null,null,null,null,null,null,null,null,null,null,null,null,null,null,null,null,"536",5,3,6,{"$f":"V2","v":"X"}]
[null,null,null,null,null,null,null,null,null,null,null,null,null,null,null,null,null,null,null,null,null,null,null,null,null,null,"537",5,3,7,{"$f":"V2","v":"X"}]
[null,null,null,null,null,null,null,null,null,null,null,null,null,null,null,null,null,null,null,null,null,null,null,null,null,null,"538",5,3,8,{"$f":"V2","v":"X"}]
[null,null,null,null,null,null,null,null,null,null,null,null,null,null,null,null,null,null,null,null,null,null,null,null,null,null,"539",5,3,9,{"$f":"W2","v":"Y"}]
[null,null,null,null,null,null,null,null,null,null,null,null,null,null,null,null,null,null,null,null,null,null,null,null,null,null,"541",5,4,1,{"$f":"W2","v":"Y"}]
[null,null,null,null,null,null,null,null,null,null,null,null,null,null,null,null,null,null,null,null,null,null,null,null,null,null,"542",5,4,2,{"$f":"W2","v":"Y"}]
[null,null,null,null,null,null,null,null,null,null,null,null,null,null,null,null,null,null,null,null,null,null,null,null,null,null,"543",5,4,3,{"$f":"W2","v":"Y"}]
[null,null,null,null,null,null,null,null,null,null,null,null,null,null,null,null,null,null,null,null,null,null,null,null,null,null,"544",5,4,4,{"$f":"W2","v":"Y"}]
[null,null,null,null,null,null,null,null,null,null,null,null,null,null,null,null,null,null,null,null,null,null,null,null,null,null,"545",5,4,5,{"$f":"V2","v":"X"}]
[null,null,null,null,null,null,null,null,null,null,null,null,null,null,null,null,null,null,null,null,null,null,null,null,null,null,"546",5,4,6,{"$f":"V2","v":"X"}]
[null,null,null,null,null,null,null,null,null,null,null,null,null,null,null,null,null,null,null,null,null,null,null,null,null,null,"547",5,4,7,{"$f":"V2","v":"X"}]
[null,null,null,null,null,null,null,null,null,null,null,null,null,null,null,null,null,null,null,null,null,null,null,null,null,null,"548",5,4,8,{"$f":"V2","v":"X"}]
[null,null,null,null,null,null,null,null,null,null,null,null,null,null,null,null,null,null,null,null,null,null,null,null,null,null,"549",5,4,9,"NUL"]
[null,null,null,null,null,null,null,null,null,null,null,null,null,null,null,null,null,null,null,null,null,null,null,null,null,null,"551",5,5,1,{"$f":"V2","v":"X"}]
[null,null,null,null,null,null,null,null,null,null,null,null,null,null,null,null,null,null,null,null,null,null,null,null,null,null,"552",5,5,2,{"$f":"V2","v":"X"}]
[null,null,null,null,null,null,null,null,null,null,null,null,null,null,null,null,null,null,null,null,null,null,null,null,null,null,"553",5,5,3,{"$f":"V2","v":"X"}]
[null,null,null,null,null,null,null,null,null,null,null,null,null,null,null,null,null,null,null,null,null,null,null,null,null,null,"554",5,5,4,"NUL"]
[null,null,null,null,null,null,null,null,null,null,null,null,null,null,null,null,null,null,null,null,null,null,null,null,null,null,"556",5,5,6,"NUL"]
[null,null,null,null,null,null,null,null,null,null,null,null,null,null,null,null,null,null,null,null,null,null,null,null,null,null,"557",5,5,7,{"$f":"V2","v":"X"}]
[null,null,null,null,null,null,null,null,null,null,null,null,null,null,null,null,null,null,null,null,null,null,null,null,null,null,"558",5,5,8,{"$f":"W2","v":"Y"}]
[null,null,null,null,null,null,null,null,null,null,null,null,null,null,null,null,null,null,null,null,null,null,null,null,null,null,"559",5,5,9,{"$f":"V2","v":"X"}]
[null,null,null,null,null,null,null,null,null,null,null,null,null,null,null,null,null,null,null,null,null,null,null,null,null,null,"561",5,6,1,"NUL"]
[null,null,null,null,null,null,null,null,null,null,null,null,null,null,null,null,null,null,null,null,null,null,null,null,null,null,"562",5,6,2,{"$f":"V2","v":"X"}]
[null,null,null,null,null,null,null,null,null,null,null,null,null,null,null,null,null,null,null,null,null,null,null,null,null,null,"563",5,6,3,{"$f":"V2","v":"X"}]
[null,null,null,null,null,null,null,null,null,null,null,null,null,null,null,null,null,null,null,null,null,null,null,null,null,null,"564",5,6,4,{"$f":"V2","v":"X"}]
[null,null,null,null,null,null,null,null,null,null,null,null,null,null,null,null,null,null,null,null,null,null,null,null,null,null,"565",5,6,5,{"$f":"V2","v":"X"}]
[null,null,null,null,null,null,null,null,null,null,null,null,null,null,null,null,null,null,null,null,null,null,null,null,null,null,"566",5,6,6,{"$f":"W2","v":"Y"}]
[null,null,null,null,null,null,null,null,null,null,null,null,null,null,null,null,null,null,null,null,null,null,null,null,null,null,"567",5,6,7,{"$f":"W2","v":"Y"}]
[null,null,null,null,null,null,null,null,null,null,null,null,null,null,null,null,null,null,null,null,null,null,null,null,null,null,"568",5,6,8,{"$f":"W2","v":"Y"}]
[null,null,null,null,null,null,null,null,null,null,null,null,null,null,null,null,null,null,null,null,null,null,null,null,null,null,"569",5,6,9,{"$f":"W2","v":"Y"}]
[null,null,null,null,null,null,null,null,null,null,null,null,null,null,null,null,null,null,null,null,null,null,null,null,null,null,"571",5,7,1,{"$f":"W2","v":"Y"}]
[null,null,null,null,null,null,null,null,null,null,null,null,null,null,null,null,null,null,null,null,null,null,null,null,null,null,"572",5,7,2,{"$f":"V2","v":"X"}]
[null,null,null,null,null,null,null,null,null,null,null,null,null,null,null,null,null,null,null,null,null,null,null,null,null,null,"573",5,7,3,{"$f":"V2","v":"X"}]
[null,null,null,null,null,null,null,null,null,null,null,null,null,null,null,null,null,null,null,null,null,null,null,null,null,null,{"$f":"CONCATENATE(AB387,AC387,AD387)","v":"574"},5,7,4,{"$f":"V2","v":"X"}]
[null,null,null,null,null,null,null,null,null,null,null,null,null,null,null,null,null,null,null,null,null,null,null,null,null,null,"575",5,7,5,{"$f":"V2","v":"X"}]
[null,null,null,null,null,null,null,null,null,null,null,null,null,null,null,null,null,null,null,null,null,null,null,null,null,null,"576",5,7,6,"NUL"]
[null,null,null,null,null,null,null,null,null,null,null,null,null,null,null,null,null,null,null,null,null,null,null,null,null,null,"577",5,7,7,{"$f":"W2","v":"Y"}]
[null,null,null,null,null,null,null,null,null,null,null,null,null,null,null,null,null,null,null,null,null,null,null,null,null,null,"578",5,7,8,{"$f":"W2","v":"Y"}]
[null,null,null,null,null,null,null,null,null,null,null,null,null,null,null,null,null,null,null,null,null,null,null,null,null,null,"579",5,7,9,{"$f":"W2","v":"Y"}]
[null,null,null,null,null,null,null,null,null,null,null,null,null,null,null,null,null,null,null,null,null,null,null,null,null,null,"581",5,8,1,{"$f":"W2","v":"Y"}]
[null,null,null,null,null,null,null,null,null,null,null,null,null,null,null,null,null,null,null,null,null,null,null,null,null,null,"582",5,8,2,"NUL"]
[null,null,null,null,null,null,null,null,null,null,null,null,null,null,null,null,null,null,null,null,null,null,null,null,null,null,"583",5,8,3,{"$f":"V2","v":"X"}]
[null,null,null,null,null,null,null,null,null,null,null,null,null,null,null,null,null,null,null,null,null,null,null,null,null,null,"584",5,8,4,{"$f":"V2","v":"X"}]
[null,null,null,null,null,null,null,null,null,null,null,null,null,null,null,null,null,null,null,null,null,null,null,null,null,null,"585",5,8,5,{"$f":"V2","v":"X"}]
[null,null,null,null,null,null,null,null,null,null,null,null,null,null,null,null,null,null,null,null,null,null,null,null,null,null,"586",5,8,6,{"$f":"V2","v":"X"}]
[null,null,null,null,null,null,null,null,null,null,null,null,null,null,null,null,null,null,null,null,null,null,null,null,null,null,"587",5,8,7,{"$f":"W2","v":"Y"}]
[null,null,null,null,null,null,null,null,null,null,null,null,null,null,null,null,null,null,null,null,null,null,null,null,null,null,"588",5,8,8,{"$f":"W2","v":"Y"}]
[null,null,null,null,null,null,null,null,null,null,null,null,null,null,null,null,null,null,null,null,null,null,null,null,null,null,"589",5,8,9,{"$f":"W2","v":"Y"}]
[null,null,null,null,null,null,null,null,null,null,null,null,null,null,null,null,null,null,null,null,null,null,null,null,null,null,"591",5,9,1,{"$f":"W2","v":"Y"}]
[null,null,null,null,null,null,null,null,null,null,null,null,null,null,null,null,null,null,null,null,null,null,null,null,null,null,"592",5,9,2,{"$f":"W2","v":"Y"}]
[null,null,null,null,null,null,null,null,null,null,null,null,null,null,null,null,null,null,null,null,null,null,null,null,null,null,"593",5,9,3,{"$f":"V2","v":"X"}]
[null,null,null,null,null,null,null,null,null,null,null,null,null,null,null,null,null,null,null,null,null,null,null,null,null,null,"594",5,9,4,{"$f":"V2","v":"X"}]
[null,null,null,null,null,null,null,null,null,null,null,null,null,null,null,null,null,null,null,null,null,null,null,null,null,null,"595",5,9,5,{"$f":"V2","v":"X"}]
[null,null,null,null,null,null,null,null,null,null,null,null,null,null,null,null,null,null,null,null,null,null,null,null,null,null,"596",5,9,6,{"$f":"V2","v":"X"}]
[null,null,null,null,null,null,null,null,null,null,null,null,null,null,null,null,null,null,null,null,null,null,null,null,null,null,"597",5,9,7,"NUL"]
[null,null,null,null,null,null,null,null,null,null,null,null,null,null,null,null,null,null,null,null,null,null,null,null,null,null,"598",5,9,8,{"$f":"V2","v":"X"}]
[null,null,null,null,null,null,null,null,null,null,null,null,null,null,null,null,null,null,null,null,null,null,null,null,null,null,"599",5,9,9,{"$f":"V2","v":"X"}]
[null,null,null,null,null,null,null,null,null,null,null,null,null,null,null,null,null,null,null,null,null,null,null,null,null,null,"611",6,1,1,{"$f":"W2","v":"Y"}]
[null,null,null,null,null,null,null,null,null,null,null,null,null,null,null,null,null,null,null,null,null,null,null,null,null,null,"612",6,1,2,{"$f":"W2","v":"Y"}]
[null,null,null,null,null,null,null,null,null,null,null,null,null,null,null,null,null,null,null,null,null,null,null,null,null,null,"613",6,1,3,{"$f":"W2","v":"Y"}]
[null,null,null,null,null,null,null,null,null,null,null,null,null,null,null,null,null,null,null,null,null,null,null,null,null,null,"614",6,1,4,{"$f":"W2","v":"Y"}]
[null,null,null,null,null,null,null,null,null,null,null,null,null,null,null,null,null,null,null,null,null,null,null,null,null,null,"615",6,1,5,{"$f":"V2","v":"X"}]
[null,null,null,null,null,null,null,null,null,null,null,null,null,null,null,null,null,null,null,null,null,null,null,null,null,null,"616",6,1,6,{"$f":"V2","v":"X"}]
[null,null,null,null,null,null,null,null,null,null,null,null,null,null,null,null,null,null,null,null,null,null,null,null,null,null,"617",6,1,7,{"$f":"V2","v":"X"}]
[null,null,null,null,null,null,null,null,null,null,null,null,null,null,null,null,null,null,null,null,null,null,null,null,null,null,"618",6,1,8,"NUL"]
[null,null,null,null,null,null,null,null,null,null,null,null,null,null,null,null,null,null,null,null,null,null,null,null,null,null,"619",6,1,9,{"$f":"W2","v":"Y"}]
[null,null,null,null,null,null,null,null,null,null,null,null,null,null,null,null,null,null,null,null,null,null,null,null,null,null,"621",6,2,1,{"$f":"W2","v":"Y"}]
[null,null,null,null,null,null,null,null,null,null,null,null,null,null,null,null,null,null,null,null,null,null,null,null,null,null,"622",6,2,2,{"$f":"W2","v":"Y"}]
[null,null,null,null,null,null,null,null,null,null,null,null,null,null,null,null,null,null,null,null,null,null,null,null,null,null,"623",6,2,3,{"$f":"W2","v":"Y"}]
[null,null,null,null,null,null,null,null,null,null,null,null,null,null,null,null,null,null,null,null,null,null,null,null,null,null,"624",6,2,4,"NUL"]
[null,null,null,null,null,null,null,null,null,null,null,null,null,null,null,null,null,null,null,null,null,null,null,null,null,null,"625",6,2,5,{"$f":"V2","v":"X"}]
[null,null,null,null,null,null,null,null,null,null,null,null,null,null,null,null,null,null,null,null,null,null,null,null,null,null,"626",6,2,6,{"$f":"V2","v":"X"}]
[null,null,null,null,null,null,null,null,null,null,null,null,null,null,null,null,null,null,null,null,null,null,null,null,null,null,"627",6,2,7,{"$f":"V2","v":"X"}]
[null,null,null,null,null,null,null,null,null,null,null,null,null,null,null,null,null,null,null,null,null,null,null,null,null,null,"628",6,2,8,{"$f":"V2","v":"X"}]
[null,null,null,null,null,null,null,null,null,null,null,null,null,null,null,null,null,null,null,null,null,null,null,null,null,null,"629",6,2,9,{"$f":"V2","v":"X"}]
[null,null,null,null,null,null,null,null,null,null,null,null,null,null,null,null,null,null,null,null,null,null,null,null,null,null,"631",6,3,1,{"$f":"W2","v":"Y"}]
[null,null,null,null,null,null,null,null,null,null,null,null,null,null,null,null,null,null,null,null,null,null,null,null,null,null,"632",6,3,2,{"$f":"W2","v":"Y"}]
[null,null,null,null,null,null,null,null,null,null,null,null,null,null,null,null,null,null,null,null,null,null,null,null,null,null,"633",6,3,3,{"$f":"W2","v":"Y"}]
[null,null,null,null,null,null,null,null,null,null,null,null,null,null,null,null,null,null,null,null,null,null,null,null,null,null,"634",6,3,4,{"$f":"W2","v":"Y"}]
[null,null,null,null,null,null,null,null,null,null,null,null,null,null,null,null,null,null,null,null,null,null,null,null,null,null,"635",6,3,5,{"$f":"V2","v":"X"}]
[null,null,null,null,null,null,null,null,null,null,null,null,null,null,null,null,null,null,null,null,null,null,null,null,null,null,"636",6,3,6,{"$f":"V2","v":"X"}]
[null,null,null,null,null,null,null,null,null,null,null,null,null,null,null,null,null,null,null,null,null,null,null,null,null,null,"637",6,3,7,{"$f":"V2","v":"X"}]
[null,null,null,null,null,null,null,null,null,null,null,null,null,null,null,null,null,null,null,null,null,null,null,null,null,null,"638",6,3,8,{"$f":"V2","v":"X"}]
[null,null,null,null,null,null,null,null,null,null,null,null,null,null,null,null,null,null,null,null,null,null,null,null,null,null,"639",6,3,9,"NUL"]
[null,null,null,null,null,null,null,null,null,null,null,null,null,null,null,null,null,null,null,null,null,null,null,null,null,null,"641",6,4,1,{"$f":"W2","v":"Y"}]
[null,null,null,null,null,null,null,null,null,null,null,null,null,null,null,null,null,null,null,null,null,null,null,null,null,null,"642",6,4,2,{"$f":"W2","v":"Y"}]
[null,null,null,null,null,null,null,null,null,null,null,null,null,null,null,null,null,null,null,null,null,null,null,null,null,null,"643",6,4,3,{"$f":"W2","v":"Y"}]
[null,null,null,null,null,null,null,null,null,null,null,null,null,null,null,null,null,null,null,null,null,null,null,null,null,null,"644",6,4,4,{"$f":"W2","v":"Y"}]
[null,null,null,null,null,null,null,null,null,null,null,null,null,null,null,null,null,null,null,null,null,null,null,null,null,null,"645",6,4,5,"NUL"]
[null,null,null,null,null,null,null,null,null,null,null,null,null,null,null,null,null,null,null,null,null,null,null,null,null,null,"646",6,4,6,{"$f":"V2","v":"X"}]
[null,null,null,null,null,null,null,null,null,null,null,null,null,null,null,null,null,null,null,null,null,null,null,null,null,null,"647",6,4,7,{"$f":"V2","v":"X"}]
[null,null,null,null,null,null,null,null,null,null,null,null,null,null,null,null,null,null,null,null,null,null,null,null,null,null,"648",6,4,8,{"$f":"V2","v":"X"}]
[null,null,null,null,null,null,null,null,null,null,null,null,null,null,null,null,null,null,null,null,null,null,null,null,null,null,"649",6,4,9,{"$f":"V2","v":"X"}]
[null,null,null,null,null,null,null,null,null,null,null,null,null,null,null,null,null,null,null,null,null,null,null,null,null,null,"651",6,5,1,"NUL"]
[null,null,null,null,null,null,null,null,null,null,null,null,null,null,null,null,null,null,null,null,null,null,null,null,null,null,"652",6,5,2,{"$f":"W2","v":"Y"}]
[null,null,null,null,null,null,null,null,null,null,null,null,null,null,null,null,null,null,null,null,null,null,null,null,null,null,"653",6,5,3,{"$f":"W2","v":"Y"}]
[null,null,null,null,null,null,null,null,null,null,null,null,null,null,null,null,null,null,null,null,null,null,null,null,null,null,"654",6,5,4,{"$f":"W2","v":"Y"}]
[null,null,null,null,null,null,null,null,null,null,null,null,null,null,null,null,null,null,null,null,null,null,null,null,null,null,{"$f":"CONCATENATE(AB451,AC451,AD451)","v":"655"},6,5,5,{"$f":"W2","v":"Y"}]
[null,null,null,null,null,null,null,null,null,null,null,null,null,null,null,null,null,null,null,null,null,null,null,null,null,null,"656",6,5,6,{"$f":"V2","v":"X"}]
[null,null,null,null,null,null,null,null,null,null,null,null,null,null,null,null,null,null,null,null,null,null,null,null,null,null,"657",6,5,7,{"$f":"V2","v":"X"}]
[null,null,null,null,null,null,null,null,null,null,null,null,null,null,null,null,null,null,null,null,null,null,null,null,null,null,"658",6,5,8,{"$f":"V2","v":"X"}]
[null,null,null,null,null,null,null,null,null,null,null,null,null,null,null,null,null,null,null,null,null,null,null,null,null,null,"659",6,5,9,{"$f":"V2","v":"X"}]
[null,null,null,null,null,null,null,null,null,null,null,null,null,null,null,null,null,null,null,null,null,null,null,null,null,null,"661",6,6,1,{"$f":"V2","v":"X"}]
[null,null,null,null,null,null,null,null,null,null,null,null,null,null,null,null,null,null,null,null,null,null,null,null,null,null,"662",6,6,2,{"$f":"V2","v":"X"}]
[null,null,null,null,null,null,null,null,null,null,null,null,null,null,null,null,null,null,null,null,null,null,null,null,null,null,"663",6,6,3,{"$f":"V2","v":"X"}]
[null,null,null,null,null,null,null,null,null,null,null,null,null,null,null,null,null,null,null,null,null,null,null,null,null,null,"664",6,6,4,{"$f":"V2","v":"X"}]
[null,null,null,null,null,null,null,null,null,null,null,null,null,null,null,null,null,null,null,null,null,null,null,null,null,null,"665",6,6,5,"NUL"]
[null,null,null,null,null,null,null,null,null,null,null,null,null,null,null,null,null,null,null,null,null,null,null,null,null,null,"667",6,6,7,"NUL"]
[null,null,null,null,null,null,null,null,null,null,null,null,null,null,null,null,null,null,null,null,null,null,null,null,null,null,"668",6,6,8,{"$f":"V2","v":"X"}]
[null,null,null,null,null,null,null,null,null,null,null,null,null,null,null,null,null,null,null,null,null,null,null,null,null,null,"669",6,6,9,{"$f":"W2","v":"Y"}]
[null,null,null,null,null,null,null,null,null,null,null,null,null,null,null,null,null,null,null,null,null,null,null,null,null,null,"671",6,7,1,{"$f":"W2","v":"Y"}]
[null,null,null,null,null,null,null,null,null,null,null,null,null,null,null,null,null,null,null,null,null,null,null,null,null,null,"672",6,7,2,"NUL"]
[null,null,null,null,null,null,null,null,null,null,null,null,null,null,null,null,null,null,null,null,null,null,null,null,null,null,"673",6,7,3,{"$f":"V2","v":"X"}]
[null,null,null,null,null,null,null,null,null,null,null,null,null,null,null,null,null,null,null,null,null,null,null,null,null,null,"674",6,7,4,{"$f":"V2","v":"X"}]
[null,null,null,null,null,null,null,null,null,null,null,null,null,null,null,null,null,null,null,null,null,null,null,null,null,null,"675",6,7,5,{"$f":"V2","v":"X"}]
[null,null,null,null,null,null,null,null,null,null,null,null,null,null,null,null,null,null,null,null,null,null,null,null,null,null,"676",6,7,6,{"$f":"V2","v":"X"}]
[null,null,null,null,null,null,null,null,null,null,null,null,null,null,null,null,null,null,null,null,null,null,null,null,null,null,"677",6,7,7,{"$f":"W2","v":"Y"}]
[null,null,null,null,null,null,null,null,null,null,null,null,null,null,null,null,null,null,null,null,null,null,null,null,null,null,"678",6,7,8,{"$f":"W2","v":"Y"}]
[null,null,null,null,null,null,null,null,null,null,null,null,null,null,null,null,null,null,null,null,null,null,null,null,null,null,"679",6,7,9,{"$f":"W2","v":"Y"}]
[null,null,null,null,null,null,null,null,null,null,null,null,null,null,null,null,null,null,null,null,null,null,null,null,null,null,"681",6,8,1,{"$f":"W2","v":"Y"}]
[null,null,null,null,null,null,null,null,null,null,null,null,null,null,null,null,null,null,null,null,null,null,null,null,null,null,"682",6,8,2,{"$f":"W2","v":"Y"}]
[null,null,null,null,null,null,null,null,null,null,null,null,null,null,null,null,null,null,null,null,null,null,null,null,null,null,"683",6,8,3,{"$f":"V2","v":"X"}]
[null,null,null,null,null,null,null,null,null,null,null,null,null,null,null,null,null,null,null,null,null,null,null,null,null,null,"684",6,8,4,{"$f":"V2","v":"X"}]
[null,null,null,null,null,null,null,null,null,null,null,null,null,null,null,null,null,null,null,null,null,null,null,null,null,null,"685",6,8,5,{"$f":"V2","v":"X"}]
[null,null,null,null,null,null,null,null,null,null,null,null,null,null,null,null,null,null,null,null,null,null,null,null,null,null,"686",6,8,6,{"$f":"V2","v":"X"}]
[null,null,null,null,null,null,null,null,null,null,null,null,null,null,null,null,null,null,null,null,null,null,null,null,null,null,"687",6,8,7,"NUL"]
[null,null,null,null,null,null,null,null,null,null,null,null,null,null,null,null,null,null,null,null,null,null,null,null,null,null,"688",6,8,8,{"$f":"W2","v":"Y"}]
[null,null,null,null,null,null,null,null,null,null,null,null,null,null,null,null,null,null,null,null,null,null,null,null,null,null,"689",6,8,9,{"$f":"W2","v":"Y"}]
[null,null,null,null,null,null,null,null,null,null,null,null,null,null,null,null,null,null,null,null,null,null,null,null,null,null,"691",6,9,1,{"$f":"W2","v":"Y"}]
[null,null,null,null,null,null,null,null,null,null,null,null,null,null,null,null,null,null,null,null,null,null,null,null,null,null,"692",6,9,2,{"$f":"W2","v":"Y"}]
[null,null,null,null,null,null,null,null,null,null,null,null,null,null,null,null,null,null,null,null,null,null,null,null,null,null,"693",6,9,3,"NUL"]
[null,null,null,null,null,null,null,null,null,null,null,null,null,null,null,null,null,null,null,null,null,null,null,null,null,null,"694",6,9,4,{"$f":"V2","v":"X"}]
[null,null,null,null,null,null,null,null,null,null,null,null,null,null,null,null,null,null,null,null,null,null,null,null,null,null,"695",6,9,5,{"$f":"V2","v":"X"}]
[null,null,null,null,null,null,null,null,null,null,null,null,null,null,null,null,null,null,null,null,null,null,null,null,null,null,"696",6,9,6,{"$f":"V2","v":"X"}]
[null,null,null,null,null,null,null,null,null,null,null,null,null,null,null,null,null,null,null,null,null,null,null,null,null,null,"697",6,9,7,{"$f":"V2","v":"X"}]
[null,null,null,null,null,null,null,null,null,null,null,null,null,null,null,null,null,null,null,null,null,null,null,null,null,null,"698",6,9,8,{"$f":"W2","v":"Y"}]
[null,null,null,null,null,null,null,null,null,null,null,null,null,null,null,null,null,null,null,null,null,null,null,null,null,null,"699",6,9,9,{"$f":"W2","v":"Y"}]
[null,null,null,null,null,null,null,null,null,null,null,null,null,null,null,null,null,null,null,null,null,null,null,null,null,null,"711",7,1,1,{"$f":"W2","v":"Y"}]
[null,null,null,null,null,null,null,null,null,null,null,null,null,null,null,null,null,null,null,null,null,null,null,null,null,null,"712",7,1,2,{"$f":"W2","v":"Y"}]
[null,null,null,null,null,null,null,null,null,null,null,null,null,null,null,null,null,null,null,null,null,null,null,null,null,null,"713",7,1,3,{"$f":"W2","v":"Y"}]
[null,null,null,null,null,null,null,null,null,null,null,null,null,null,null,null,null,null,null,null,null,null,null,null,null,null,"714",7,1,4,"NUL"]
[null,null,null,null,null,null,null,null,null,null,null,null,null,null,null,null,null,null,null,null,null,null,null,null,null,null,"715",7,1,5,{"$f":"V2","v":"X"}]
[null,null,null,null,null,null,null,null,null,null,null,null,null,null,null,null,null,null,null,null,null,null,null,null,null,null,"716",7,1,6,{"$f":"V2","v":"X"}]
[null,null,null,null,null,null,null,null,null,null,null,null,null,null,null,null,null,null,null,null,null,null,null,null,null,null,"717",7,1,7,{"$f":"V2","v":"X"}]
[null,null,null,null,null,null,null,null,null,null,null,null,null,null,null,null,null,null,null,null,null,null,null,null,null,null,"718",7,1,8,{"$f":"V2","v":"X"}]
[null,null,null,null,null,null,null,null,null,null,null,null,null,null,null,null,null,null,null,null,null,null,null,null,null,null,"719",7,1,9,{"$f":"W2","v":"Y"}]
[null,null,null,null,null,null,null,null,null,null,null,null,null,null,null,null,null,null,null,null,null,null,null,null,null,null,"721",7,2,1,{"$f":"W2","v":"Y"}]
[null,null,null,null,null,null,null,null,null,null,null,null,null,null,null,null,null,null,null,null,null,null,null,null,null,null,"722",7,2,2,{"$f":"W2","v":"Y"}]
[null,null,null,null,null,null,null,null,null,null,null,null,null,null,null,null,null,null,null,null,null,null,null,null,null,null,"723",7,2,3,{"$f":"W2","v":"Y"}]
[null,null,null,null,null,null,null,null,null,null,null,null,null,null,null,null,null,null,null,null,null,null,null,null,null,null,"724",7,2,4,{"$f":"W2","v":"Y"}]
[null,null,null,null,null,null,null,null,null,null,null,null,null,null,null,null,null,null,null,null,null,null,null,null,null,null,"725",7,2,5,{"$f":"W2","v":"Y"}]
[null,null,null,null,null,null,null,null,null,null,null,null,null,null,null,null,null,null,null,null,null,null,null,null,null,null,"726",7,2,6,{"$f":"V2","v":"X"}]
[null,null,null,null,null,null,null,null,null,null,null,null,null,null,null,null,null,null,null,null,null,null,null,null,null,null,"727",7,2,7,{"$f":"V2","v":"X"}]
[null,null,null,null,null,null,null,null,null,null,null,null,null,null,null,null,null,null,null,null,null,null,null,null,null,null,"728",7,2,8,{"$f":"V2","v":"X"}]
[null,null,null,null,null,null,null,null,null,null,null,null,null,null,null,null,null,null,null,null,null,null,null,null,null,null,"729",7,2,9,"NUL"]
[null,null,null,null,null,null,null,null,null,null,null,null,null,null,null,null,null,null,null,null,null,null,null,null,null,null,"731",7,3,1,{"$f":"W2","v":"Y"}]
[null,null,null,null,null,null,null,null,null,null,null,null,null,null,null,null,null,null,null,null,null,null,null,null,null,null,"732",7,3,2,{"$f":"W2","v":"Y"}]
[null,null,null,null,null,null,null,null,null,null,null,null,null,null,null,null,null,null,null,null,null,null,null,null,null,null,"733",7,3,3,{"$f":"W2","v":"Y"}]
[null,null,null,null,null,null,null,null,null,null,null,null,null,null,null,null,null,null,null,null,null,null,null,null,null,null,"734",7,3,4,{"$f":"W2","v":"Y"}]
[null,null,null,null,null,null,null,null,null,null,null,null,null,null,null,null,null,null,null,null,null,null,null,null,null,null,"735",7,3,5,"NUL"]
[null,null,null,null,null,null,null,null,null,null,null,null,null,null,null,null,null,null,null,null,null,null,null,null,null,null,"736",7,3,6,{"$f":"V2","v":"X"}]
[null,null,null,null,null,null,null,null,null,null,null,null,null,null,null,null,null,null,null,null,null,null,null,null,null,null,{"$f":"CONCATENATE(AB515,AC515,AD515)","v":"737"},7,3,7,{"$f":"V2","v":"X"}]
[null,null,null,null,null,null,null,null,null,null,null,null,null,null,null,null,null,null,null,null,null,null,null,null,null,null,"738",7,3,8,{"$f":"V2","v":"X"}]
[null,null,null,null,null,null,null,null,null,null,null,null,null,null,null,null,null,null,null,null,null,null,null,null,null,null,"739",7,3,9,{"$f":"V2","v":"X"}]
[null,null,null,null,null,null,null,null,null,null,null,null,null,null,null,null,null,null,null,null,null,null,null,null,null,null,"741",7,4,1,"NUL"]
[null,null,null,null,null,null,null,null,null,null,null,null,null,null,null,null,null,null,null,null,null,null,null,null,null,null,"742",7,4,2,{"$f":"W2","v":"Y"}]
[null,null,null,null,null,null,null,null,null,null,null,null,null,null,null,null,null,null,null,null,null,null,null,null,null,null,"743",7,4,3,{"$f":"W2","v":"Y"}]
[null,null,null,null,null,null,null,null,null,null,null,null,null,null,null,null,null,null,null,null,null,null,null,null,null,null,"744",7,4,4,{"$f":"W2","v":"Y"}]
[null,null,null,null,null,null,null,null,null,null,null,null,null,null,null,null,null,null,null,null,null,null,null,null,null,null,"745",7,4,5,{"$f":"W2","v":"Y"}]
[null,null,null,null,null,null,null,null,null,null,null,null,null,null,null,null,null,null,null,null,null,null,null,null,null,null,"746",7,4,6,{"$f":"V2","v":"X"}]
[null,null,null,null,null,null,null,null,null,null,null,null,null,null,null,null,null,null,null,null,null,null,null,null,null,null,"747",7,4,7,{"$f":"V2","v":"X"}]
[null,null,null,null,null,null,null,null,null,null,null,null,null,null,null,null,null,null,null,null,null,null,null,null,null,null,"748",7,4,8,{"$f":"V2","v":"X"}]
[null,null,null,null,null,null,null,null,null,null,null,null,null,null,null,null,null,null,null,null,null,null,null,null,null,null,"749",7,4,9,{"$f":"V2","v":"X"}]
[null,null,null,null,null,null,null,null,null,null,null,null,null,null,null,null,null,null,null,null,null,null,null,null,null,null,"751",7,5,1,{"$f":"V2","v":"X"}]
[null,null,null,null,null,null,null,null,null,null,null,null,null,null,null,null,null,null,null,null,null,null,null,null,null,null,"752",7,5,2,{"$f":"W2","v":"Y"}]
[null,null,null,null,null,null,null,null,null,null,null,null,null,null,null,null,null,null,null,null,null,null,null,null,null,null,"753",7,5,3,{"$f":"W2","v":"Y"}]
[null,null,null,null,null,null,null,null,null,null,null,null,null,null,null,null,null,null,null,null,null,null,null,null,null,null,"754",7,5,4,{"$f":"W2","v":"Y"}]
[null,null,null,null,null,null,null,null,null,null,null,null,null,null,null,null,null,null,null,null,null,null,null,null,null,null,"755",7,5,5,{"$f":"W2","v":"Y"}]
[null,null,null,null,null,null,null,null,null,null,null,null,null,null,null,null,null,null,null,null,null,null,null,null,null,null,"756",7,5,6,"NUL"]
[null,null,null,null,null,null,null,null,null,null,null,null,null,null,null,null,null,null,null,null,null,null,null,null,null,null,"757",7,5,7,{"$f":"V2","v":"X"}]
[null,null,null,null,null,null,null,null,null,null,null,null,null,null,null,null,null,null,null,null,null,null,null,null,null,null,"758",7,5,8,{"$f":"V2","v":"X"}]
[null,null,null,null,null,null,null,null,null,null,null,null,null,null,null,null,null,null,null,null,null,null,null,null,null,null,"759",7,5,9,{"$f":"V2","v":"X"}]
[null,null,null,null,null,null,null,null,null,null,null,null,null,null,null,null,null,null,null,null,null,null,null,null,null,null,"761",7,6,1,{"$f":"V2","v":"X"}]
[null,null,null,null,null,null,null,null,null,null,null,null,null,null,null,null,null,null,null,null,null,null,null,null,null,null,"762",7,6,2,"NUL"]
[null,null,null,null,null,null,null,null,null,null,null,null,null,null,null,null,null,null,null,null,null,null,null,null,null,null,"763",7,6,3,{"$f":"W2","v":"Y"}]
[null,null,null,null,null,null,null,null,null,null,null,null,null,null,null,null,null,null,null,null,null,null,null,null,null,null,"764",7,6,4,{"$f":"W2","v":"Y"}]
[null,null,null,null,null,null,null,null,null,null,null,null,null,null,null,null,null,null,null,null,null,null,null,null,null,null,"765",7,6,5,{"$f":"W2","v":"Y"}]
[null,null,null,null,null,null,null,null,null,null,null,null,null,null,null,null,null,null,null,null,null,null,null,null,null,null,"766",7,6,6,{"$f":"W2","v":"Y"}]
[null,null,null,null,null,null,null,null,null,null,null,null,null,null,null,null,null,null,null,null,null,null,null,null,null,null,"767",7,6,7,{"$f":"V2","v":"X"}]
[null,null,null,null,null,null,null,null,null,null,null,null,null,null,null,null,null,null,null,null,null,null,null,null,null,null,"768",7,6,8,{"$f":"V2","v":"X"}]
[null,null,null,null,null,null,null,null,null,null,null,null,null,null,null,null,null,null,null,null,null,null,null,null,null,null,"769",7,6,9,{"$f":"V2","v":"X"}]
[null,null,null,null,null,null,null,null,null,null,null,null,null,null,null,null,null,null,null,null,null,null,null,null,null,null,"771",7,7,1,{"$f":"V2","v":"X"}]
[null,null,null,null,null,null,null,null,null,null,null,null,null,null,null,null,null,null,null,null,null,null,null,null,null,null,"772",7,7,2,{"$f":"V2","v":"X"}]
[null,null,null,null,null,null,null,null,null,null,null,null,null,null,null,null,null,null,null,null,null,null,null,null,null,null,"773",7,7,3,{"$f":"V2","v":"X"}]
[null,null,null,null,null,null,null,null,null,null,null,null,null,null,null,null,null,null,null,null,null,null,null,null,null,null,"774",7,7,4,{"$f":"V2","v":"X"}]
[null,null,null,null,null,null,null,null,null,null,null,null,null,null,null,null,null,null,null,null,null,null,null,null,null,null,"775",7,7,5,{"$f":"V2","v":"X"}]
[null,null,null,null,null,null,null,null,null,null,null,null,null,null,null,null,null,null,null,null,null,null,null,null,null,null,"776",7,7,6,"NUL"]
[null,null,null,null,null,null,null,null,null,null,null,null,null,null,null,null,null,null,null,null,null,null,null,null,null,null,"778",7,7,8,"NUL"]
[null,null,null,null,null,null,null,null,null,null,null,null,null,null,null,null,null,null,null,null,null,null,null,null,null,null,"779",7,7,9,{"$f":"V2","v":"X"}]
[null,null,null,null,null,null,null,null,null,null,null,null,null,null,null,null,null,null,null,null,null,null,null,null,null,null,"781",7,8,1,{"$f":"W2","v":"Y"}]
[null,null,null,null,null,null,null,null,null,null,null,null,null,null,null,null,null,null,null,null,null,null,null,null,null,null,"782",7,8,2,{"$f":"W2","v":"Y"}]
[null,null,null,null,null,null,null,null,null,null,null,null,null,null,null,null,null,null,null,null,null,null,null,null,null,null,"783",7,8,3,"NUL"]
[null,null,null,null,null,null,null,null,null,null,null,null,null,null,null,null,null,null,null,null,null,null,null,null,null,null,"784",7,8,4,{"$f":"V2","v":"X"}]
[null,null,null,null,null,null,null,null,null,null,null,null,null,null,null,null,null,null,null,null,null,null,null,null,null,null,"785",7,8,5,{"$f":"V2","v":"X"}]
[null,null,null,null,null,null,null,null,null,null,null,null,null,null,null,null,null,null,null,null,null,null,null,null,null,null,"786",7,8,6,{"$f":"V2","v":"X"}]
[null,null,null,null,null,null,null,null,null,null,null,null,null,null,null,null,null,null,null,null,null,null,null,null,null,null,"787",7,8,7,{"$f":"V2","v":"X"}]
[null,null,null,null,null,null,null,null,null,null,null,null,null,null,null,null,null,null,null,null,null,null,null,null,null,null,"788",7,8,8,{"$f":"W2","v":"Y"}]
[null,null,null,null,null,null,null,null,null,null,null,null,null,null,null,null,null,null,null,null,null,null,null,null,null,null,"789",7,8,9,{"$f":"W2","v":"Y"}]
[null,null,null,null,null,null,null,null,null,null,null,null,null,null,null,null,null,null,null,null,null,null,null,null,null,null,"791",7,9,1,{"$f":"W2","v":"Y"}]
[null,null,null,null,null,null,null,null,null,null,null,null,null,null,null,null,null,null,null,null,null,null,null,null,null,null,"792",7,9,2,{"$f":"W2","v":"Y"}]
[null,null,null,null,null,null,null,null,null,null,null,null,null,null,null,null,null,null,null,null,null,null,null,null,null,null,"793",7,9,3,{"$f":"W2","v":"Y"}]
[null,null,null,null,null,null,null,null,null,null,null,null,null,null,null,null,null,null,null,null,null,null,null,null,null,null,"794",7,9,4,{"$f":"V2","v":"X"}]
[null,null,null,null,null,null,null,null,null,null,null,null,null,null,null,null,null,null,null,null,null,null,null,null,null,null,"795",7,9,5,{"$f":"V2","v":"X"}]
[null,null,null,null,null,null,null,null,null,null,null,null,null,null,null,null,null,null,null,null,null,null,null,null,null,null,"796",7,9,6,{"$f":"V2","v":"X"}]
[null,null,null,null,null,null,null,null,null,null,null,null,null,null,null,null,null,null,null,null,null,null,null,null,null,null,"797",7,9,7,{"$f":"V2","v":"X"}]
[null,null,null,null,null,null,null,null,null,null,null,null,null,null,null,null,null,null,null,null,null,null,null,null,null,null,"798",7,9,8,"NUL"]
[null,null,null,null,null,null,null,null,null,null,null,null,null,null,null,null,null,null,null,null,null,null,null,null,null,null,"799",7,9,9,{"$f":"W2","v":"Y"}]
[null,null,null,null,null,null,null,null,null,null,null,null,null,null,null,null,null,null,null,null,null,null,null,null,null,null,"811",8,1,1,{"$f":"W2","v":"Y"}]
[null,null,null,null,null,null,null,null,null,null,null,null,null,null,null,null,null,null,null,null,null,null,null,null,null,null,"812",8,1,2,{"$f":"W2","v":"Y"}]
[null,null,null,null,null,null,null,null,null,null,null,null,null,null,null,null,null,null,null,null,null,null,null,null,null,null,"813",8,1,3,{"$f":"W2","v":"Y"}]
[null,null,null,null,null,null,null,null,null,null,null,null,null,null,null,null,null,null,null,null,null,null,null,null,null,null,"814",8,1,4,{"$f":"W2","v":"Y"}]
[null,null,null,null,null,null,null,null,null,null,null,null,null,null,null,null,null,null,null,null,null,null,null,null,null,null,"815",8,1,5,{"$f":"V2","v":"X"}]
[null,null,null,null,null,null,null,null,null,null,null,null,null,null,null,null,null,null,null,null,null,null,null,null,null,null,"816",8,1,6,{"$f":"V2","v":"X"}]
[null,null,null,null,null,null,null,null,null,null,null,null,null,null,null,null,null,null,null,null,null,null,null,null,null,null,"817",8,1,7,{"$f":"V2","v":"X"}]
[null,null,null,null,null,null,null,null,null,null,null,null,null,null,null,null,null,null,null,null,null,null,null,null,null,null,"818",8,1,8,{"$f":"V2","v":"X"}]
[null,null,null,null,null,null,null,null,null,null,null,null,null,null,null,null,null,null,null,null,null,null,null,null,null,null,{"$f":"CONCATENATE(AB579,AC579,AD579)","v":"819"},8,1,9,"NUL"]
[null,null,null,null,null,null,null,null,null,null,null,null,null,null,null,null,null,null,null,null,null,null,null,null,null,null,"821",8,2,1,{"$f":"W2","v":"Y"}]
[null,null,null,null,null,null,null,null,null,null,null,null,null,null,null,null,null,null,null,null,null,null,null,null,null,null,"822",8,2,2,{"$f":"W2","v":"Y"}]
[null,null,null,null,null,null,null,null,null,null,null,null,null,null,null,null,null,null,null,null,null,null,null,null,null,null,"823",8,2,3,{"$f":"W2","v":"Y"}]
[null,null,null,null,null,null,null,null,null,null,null,null,null,null,null,null,null,null,null,null,null,null,null,null,null,null,"824",8,2,4,{"$f":"W2","v":"Y"}]
[null,null,null,null,null,null,null,null,null,null,null,null,null,null,null,null,null,null,null,null,null,null,null,null,null,null,"825",8,2,5,"NUL"]
[null,null,null,null,null,null,null,null,null,null,null,null,null,null,null,null,null,null,null,null,null,null,null,null,null,null,"826",8,2,6,{"$f":"V2","v":"X"}]
[null,null,null,null,null,null,null,null,null,null,null,null,null,null,null,null,null,null,null,null,null,null,null,null,null,null,"827",8,2,7,{"$f":"V2","v":"X"}]
[null,null,null,null,null,null,null,null,null,null,null,null,null,null,null,null,null,null,null,null,null,null,null,null,null,null,"828",8,2,8,{"$f":"V2","v":"X"}]
[null,null,null,null,null,null,null,null,null,null,null,null,null,null,null,null,null,null,null,null,null,null,null,null,null,null,"829",8,2,9,{"$f":"V2","v":"X"}]
[null,null,null,null,null,null,null,null,null,null,null,null,null,null,null,null,null,null,null,null,null,null,null,null,null,null,"831",8,3,1,"NUL"]
[null,null,null,null,null,null,null,null,null,null,null,null,null,null,null,null,null,null,null,null,null,null,null,null,null,null,"832",8,3,2,{"$f":"W2","v":"Y"}]
[null,null,null,null,null,null,null,null,null,null,null,null,null,null,null,null,null,null,null,null,null,null,null,null,null,null,"833",8,3,3,{"$f":"W2","v":"Y"}]
[null,null,null,null,null,null,null,null,null,null,null,null,null,null,null,null,null,null,null,null,null,null,null,null,null,null,"834",8,3,4,{"$f":"W2","v":"Y"}]
[null,null,null,null,null,null,null,null,null,null,null,null,null,null,null,null,null,null,null,null,null,null,null,null,null,null,"835",8,3,5,{"$f":"W2","v":"Y"}]
[null,null,null,null,null,null,null,null,null,null,null,null,null,null,null,null,null,null,null,null,null,null,null,null,null,null,"836",8,3,6,{"$f":"V2","v":"X"}]
[null,null,null,null,null,null,null,null,null,null,null,null,null,null,null,null,null,null,null,null,null,null,null,null,null,null,"837",8,3,7,{"$f":"V2","v":"X"}]
[null,null,null,null,null,null,null,null,null,null,null,null,null,null,null,null,null,null,null,null,null,null,null,null,null,null,"838",8,3,8,{"$f":"V2","v":"X"}]
[null,null,null,null,null,null,null,null,null,null,null,null,null,null,null,null,null,null,null,null,null,null,null,null,null,null,"839",8,3,9,{"$f":"V2","v":"X"}]
[null,null,null,null,null,null,null,null,null,null,null,null,null,null,null,null,null,null,null,null,null,null,null,null,null,null,"841",8,4,1,{"$f":"V2","v":"X"}]
[null,null,null,null,null,null,null,null,null,null,null,null,null,null,null,null,null,null,null,null,null,null,null,null,null,null,"842",8,4,2,{"$f":"W2","v":"Y"}]
[null,null,null,null,null,null,null,null,null,null,null,null,null,null,null,null,null,null,null,null,null,null,null,null,null,null,"843",8,4,3,{"$f":"W2","v":"Y"}]
[null,null,null,null,null,null,null,null,null,null,null,null,null,null,null,null,null,null,null,null,null,null,null,null,null,null,"844",8,4,4,{"$f":"W2","v":"Y"}]
[null,null,null,null,null,null,null,null,null,null,null,null,null,null,null,null,null,null,null,null,null,null,null,null,null,null,"845",8,4,5,{"$f":"W2","v":"Y"}]
[null,null,null,null,null,null,null,null,null,null,null,null,null,null,null,null,null,null,null,null,null,null,null,null,null,null,"846",8,4,6,"NUL"]
[null,null,null,null,null,null,null,null,null,null,null,null,null,null,null,null,null,null,null,null,null,null,null,null,null,null,"847",8,4,7,{"$f":"V2","v":"X"}]
[null,null,null,null,null,null,null,null,null,null,null,null,null,null,null,null,null,null,null,null,null,null,null,null,null,null,"848",8,4,8,{"$f":"V2","v":"X"}]
[null,null,null,null,null,null,null,null,null,null,null,null,null,null,null,null,null,null,null,null,null,null,null,null,null,null,"849",8,4,9,{"$f":"V2","v":"X"}]
[null,null,null,null,null,null,null,null,null,null,null,null,null,null,null,null,null,null,null,null,null,null,null,null,null,null,"851",8,5,1,{"$f":"V2","v":"X"}]
[null,null,null,null,null,null,null,null,null,null,null,null,null,null,null,null,null,null,null,null,null,null,null,null,null,null,"852",8,5,2,"NUL"]
[null,null,null,null,null,null,null,null,null,null,null,null,null,null,null,null,null,null,null,null,null,null,null,null,null,null,"853",8,5,3,{"$f":"W2","v":"Y"}]
[null,null,null,null,null,null,null,null,null,null,null,null,null,null,null,null,null,null,null,null,null,null,null,null,null,null,"854",8,5,4,{"$f":"W2","v":"Y"}]
[null,null,null,null,null,null,null,null,null,null,null,null,null,null,null,null,null,null,null,null,null,null,null,null,null,null,"855",8,5,5,{"$f":"W2","v":"Y"}]
[null,null,null,null,null,null,null,null,null,null,null,null,null,null,null,null,null,null,null,null,null,null,null,null,null,null,"856",8,5,6,{"$f":"W2","v":"Y"}]
[null,null,null,null,null,null,null,null,null,null,null,null,null,null,null,null,null,null,null,null,null,null,null,null,null,null,"857",8,5,7,{"$f":"V2","v":"X"}]
[null,null,null,null,null,null,null,null,null,null,null,null,null,null,null,null,null,null,null,null,null,null,null,null,null,null,"858",8,5,8,{"$f":"V2","v":"X"}]
[null,null,null,null,null,null,null,null,null,null,null,null,null,null,null,null,null,null,null,null,null,null,null,null,null,null,"859",8,5,9,{"$f":"V2","v":"X"}]
[null,null,null,null,null,null,null,null,null,null,null,null,null,null,null,null,null,null,null,null,null,null,null,null,null,null,"861",8,6,1,{"$f":"V2","v":"X"}]
[null,null,null,null,null,null,null,null,null,null,null,null,null,null,null,null,null,null,null,null,null,null,null,null,null,null,"862",8,6,2,{"$f":"V2","v":"X"}]
[null,null,null,null,null,null,null,null,null,null,null,null,null,null,null,null,null,null,null,null,null,null,null,null,null,null,"863",8,6,3,{"$f":"W2","v":"Y"}]
[null,null,null,null,null,null,null,null,null,null,null,null,null,null,null,null,null,null,null,null,null,null,null,null,null,null,"864",8,6,4,{"$f":"W2","v":"Y"}]
[null,null,null,null,null,null,null,null,null,null,null,null,null,null,null,null,null,null,null,null,null,null,null,null,null,null,"865",8,6,5,{"$f":"W2","v":"Y"}]
[null,null,null,null,null,null,null,null,null,null,null,null,null,null,null,null,null,null,null,null,null,null,null,null,null,null,"866",8,6,6,{"$f":"W2","v":"Y"}]
[null,null,null,null,null,null,null,null,null,null,null,null,null,null,null,null,null,null,null,null,null,null,null,null,null,null,"867",8,6,7,"NUL"]
[null,null,null,null,null,null,null,null,null,null,null,null,null,null,null,null,null,null,null,null,null,null,null,null,null,null,"868",8,6,8,{"$f":"V2","v":"X"}]
[null,null,null,null,null,null,null,null,null,null,null,null,null,null,null,null,null,null,null,null,null,null,null,null,null,null,"869",8,6,9,{"$f":"V2","v":"X"}]
[null,null,null,null,null,null,null,null,null,null,null,null,null,null,null,null,null,null,null,null,null,null,null,null,null,null,"871",8,7,1,{"$f":"V2","v":"X"}]
[null,null,null,null,null,null,null,null,null,null,null,null,null,null,null,null,null,null,null,null,null,null,null,null,null,null,"872",8,7,2,{"$f":"V2","v":"X"}]
[null,null,null,null,null,null,null,null,null,null,null,null,null,null,null,null,null,null,null,null,null,null,null,null,null,null,"873",8,7,3,"NUL"]
[null,null,null,null,null,null,null,null,null,null,null,null,null,null,null,null,null,null,null,null,null,null,null,null,null,null,"874",8,7,4,{"$f":"W2","v":"Y"}]
[null,null,null,null,null,null,null,null,null,null,null,null,null,null,null,null,null,null,null,null,null,null,null,null,null,null,"875",8,7,5,{"$f":"W2","v":"Y"}]
[null,null,null,null,null,null,null,null,null,null,null,null,null,null,null,null,null,null,null,null,null,null,null,null,null,null,"876",8,7,6,{"$f":"W2","v":"Y"}]
[null,null,null,null,null,null,null,null,null,null,null,null,null,null,null,null,null,null,null,null,null,null,null,null,null,null,"877",8,7,7,{"$f":"W2","v":"Y"}]
[null,null,null,null,null,null,null,null,null,null,null,null,null,null,null,null,null,null,null,null,null,null,null,null,null,null,"878",8,7,8,{"$f":"V2","v":"X"}]
[null,null,null,null,null,null,null,null,null,null,null,null,null,null,null,null,null,null,null,null,null,null,null,null,null,null,"879",8,7,9,{"$f":"V2","v":"X"}]
[null,null,null,null,null,null,null,null,null,null,null,null,null,null,null,null,null,null,null,null,null,null,null,null,null,null,"881",8,8,1,{"$f":"V2","v":"X"}]
[null,null,null,null,null,null,null,null,null,null,null,null,null,null,null,null,null,null,null,null,null,null,null,null,null,null,"882",8,8,2,{"$f":"V2","v":"X"}]
[null,null,null,null,null,null,null,null,null,null,null,null,null,null,null,null,null,null,null,null,null,null,null,null,null,null,"883",8,8,3,{"$f":"V2","v":"X"}]
[null,null,null,null,null,null,null,null,null,null,null,null,null,null,null,null,null,null,null,null,null,null,null,null,null,null,"884",8,8,4,{"$f":"V2","v":"X"}]
[null,null,null,null,null,null,null,null,null,null,null,null,null,null,null,null,null,null,null,null,null,null,null,null,null,null,"885",8,8,5,{"$f":"V2","v":"X"}]
[null,null,null,null,null,null,null,null,null,null,null,null,null,null,null,null,null,null,null,null,null,null,null,null,null,null,"886",8,8,6,{"$f":"V2","v":"X"}]
[null,null,null,null,null,null,null,null,null,null,null,null,null,null,null,null,null,null,null,null,null,null,null,null,null,null,"887",8,8,7,"NUL"]
[null,null,null,null,null,null,null,null,null,null,null,null,null,null,null,null,null,null,null,null,null,null,null,null,null,null,"889",8,8,9,"NUL"]
[null,null,null,null,null,null,null,null,null,null,null,null,null,null,null,null,null,null,null,null,null,null,null,null,null,null,"891",8,9,1,{"$f":"W2","v":"Y"}]
[null,null,null,null,null,null,null,null,null,null,null,null,null,null,null,null,null,null,null,null,null,null,null,null,null,null,{"$f":"CONCATENATE(AB643,AC643,AD643)","v":"892"},8,9,2,{"$f":"W2","v":"Y"}]
[null,null,null,null,null,null,null,null,null,null,null,null,null,null,null,null,null,null,null,null,null,null,null,null,null,null,"893",8,9,3,{"$f":"W2","v":"Y"}]
[null,null,null,null,null,null,null,null,null,null,null,null,null,null,null,null,null,null,null,null,null,null,null,null,null,null,"894",8,9,4,"NUL"]
[null,null,null,null,null,null,null,null,null,null,null,null,null,null,null,null,null,null,null,null,null,null,null,null,null,null,"895",8,9,5,{"$f":"V2","v":"X"}]
[null,null,null,null,null,null,null,null,null,null,null,null,null,null,null,null,null,null,null,null,null,null,null,null,null,null,"896",8,9,6,{"$f":"V2","v":"X"}]
[null,null,null,null,null,null,null,null,null,null,null,null,null,null,null,null,null,null,null,null,null,null,null,null,null,null,"897",8,9,7,{"$f":"V2","v":"X"}]
[null,null,null,null,null,null,null,null,null,null,null,null,null,null,null,null,null,null,null,null,null,null,null,null,null,null,"898",8,9,8,{"$f":"V2","v":"X"}]
[null,null,null,null,null,null,null,null,null,null,null,null,null,null,null,null,null,null,null,null,null,null,null,null,null,null,"899",8,9,9,{"$f":"W2","v":"Y"}]
[null,null,null,null,null,null,null,null,null,null,null,null,null,null,null,null,null,null,null,null,null,null,null,null,null,null,"911",9,1,1,{"$f":"W2","v":"Y"}]
[null,null,null,null,null,null,null,null,null,null,null,null,null,null,null,null,null,null,null,null,null,null,null,null,null,null,"912",9,1,2,{"$f":"W2","v":"Y"}]
[null,null,null,null,null,null,null,null,null,null,null,null,null,null,null,null,null,null,null,null,null,null,null,null,null,null,"913",9,1,3,{"$f":"W2","v":"Y"}]
[null,null,null,null,null,null,null,null,null,null,null,null,null,null,null,null,null,null,null,null,null,null,null,null,null,null,"914",9,1,4,{"$f":"W2","v":"Y"}]
[null,null,null,null,null,null,null,null,null,null,null,null,null,null,null,null,null,null,null,null,null,null,null,null,null,null,"915",9,1,5,"NUL"]
[null,null,null,null,null,null,null,null,null,null,null,null,null,null,null,null,null,null,null,null,null,null,null,null,null,null,"916",9,1,6,{"$f":"V2","v":"X"}]
[null,null,null,null,null,null,null,null,null,null,null,null,null,null,null,null,null,null,null,null,null,null,null,null,null,null,"917",9,1,7,{"$f":"V2","v":"X"}]
[null,null,null,null,null,null,null,null,null,null,null,null,null,null,null,null,null,null,null,null,null,null,null,null,null,null,"918",9,1,8,{"$f":"V2","v":"X"}]
[null,null,null,null,null,null,null,null,null,null,null,null,null,null,null,null,null,null,null,null,null,null,null,null,null,null,"919",9,1,9,{"$f":"V2","v":"X"}]
[null,null,null,null,null,null,null,null,null,null,null,null,null,null,null,null,null,null,null,null,null,null,null,null,null,null,"921",9,2,1,"NUL"]
[null,null,null,null,null,null,null,null,null,null,null,null,null,null,null,null,null,null,null,null,null,null,null,null,null,null,"922",9,2,2,{"$f":"W2","v":"Y"}]
[null,null,null,null,null,null,null,null,null,null,null,null,null,null,null,null,null,null,null,null,null,null,null,null,null,null,"923",9,2,3,{"$f":"W2","v":"Y"}]
[null,null,null,null,null,null,null,null,null,null,null,null,null,null,null,null,null,null,null,null,null,null,null,null,null,null,"924",9,2,4,{"$f":"W2","v":"Y"}]
[null,null,null,null,null,null,null,null,null,null,null,null,null,null,null,null,null,null,null,null,null,null,null,null,null,null,"925",9,2,5,{"$f":"W2","v":"Y"}]
[null,null,null,null,null,null,null,null,null,null,null,null,null,null,null,null,null,null,null,null,null,null,null,null,null,null,"926",9,2,6,{"$f":"V2","v":"X"}]
[null,null,null,null,null,null,null,null,null,null,null,null,null,null,null,null,null,null,null,null,null,null,null,null,null,null,"927",9,2,7,{"$f":"V2","v":"X"}]
[null,null,null,null,null,null,null,null,null,null,null,null,null,null,null,null,null,null,null,null,null,null,null,null,null,null,"928",9,2,8,{"$f":"V2","v":"X"}]
[null,null,null,null,null,null,null,null,null,null,null,null,null,null,null,null,null,null,null,null,null,null,null,null,null,null,"929",9,2,9,{"$f":"V2","v":"X"}]
[null,null,null,null,null,null,null,null,null,null,null,null,null,null,null,null,null,null,null,null,null,null,null,null,null,null,"931",9,3,1,{"$f":"V2","v":"X"}]
[null,null,null,null,null,null,null,null,null,null,null,null,null,null,null,null,null,null,null,null,null,null,null,null,null,null,"932",9,3,2,{"$f":"W2","v":"Y"}]
[null,null,null,null,null,null,null,null,null,null,null,null,null,null,null,null,null,null,null,null,null,null,null,null,null,null,"933",9,3,3,{"$f":"W2","v":"Y"}]
[null,null,null,null,null,null,null,null,null,null,null,null,null,null,null,null,null,null,null,null,null,null,null,null,null,null,"934",9,3,4,{"$f":"W2","v":"Y"}]
[null,null,null,null,null,null,null,null,null,null,null,null,null,null,null,null,null,null,null,null,null,null,null,null,null,null,"935",9,3,5,{"$f":"W2","v":"Y"}]
[null,null,null,null,null,null,null,null,null,null,null,null,null,null,null,null,null,null,null,null,null,null,null,null,null,null,"936",9,3,6,"NUL"]
[null,null,null,null,null,null,null,null,null,null,null,null,null,null,null,null,null,null,null,null,null,null,null,null,null,null,"937",9,3,7,{"$f":"V2","v":"X"}]
[null,null,null,null,null,null,null,null,null,null,null,null,null,null,null,null,null,null,null,null,null,null,null,null,null,null,"938",9,3,8,{"$f":"V2","v":"X"}]
[null,null,null,null,null,null,null,null,null,null,null,null,null,null,null,null,null,null,null,null,null,null,null,null,null,null,"939",9,3,9,{"$f":"V2","v":"X"}]
[null,null,null,null,null,null,null,null,null,null,null,null,null,null,null,null,null,null,null,null,null,null,null,null,null,null,"941",9,4,1,{"$f":"V2","v":"X"}]
[null,null,null,null,null,null,null,null,null,null,null,null,null,null,null,null,null,null,null,null,null,null,null,null,null,null,"942",9,4,2,"NUL"]
[null,null,null,null,null,null,null,null,null,null,null,null,null,null,null,null,null,null,null,null,null,null,null,null,null,null,"943",9,4,3,{"$f":"W2","v":"Y"}]
[null,null,null,null,null,null,null,null,null,null,null,null,null,null,null,null,null,null,null,null,null,null,null,null,null,null,"944",9,4,4,{"$f":"W2","v":"Y"}]
[null,null,null,null,null,null,null,null,null,null,null,null,null,null,null,null,null,null,null,null,null,null,null,null,null,null,"945",9,4,5,{"$f":"W2","v":"Y"}]
[null,null,null,null,null,null,null,null,null,null,null,null,null,null,null,null,null,null,null,null,null,null,null,null,null,null,"946",9,4,6,{"$f":"W2","v":"Y"}]
[null,null,null,null,null,null,null,null,null,null,null,null,null,null,null,null,null,null,null,null,null,null,null,null,null,null,"947",9,4,7,{"$f":"V2","v":"X"}]
[null,null,null,null,null,null,null,null,null,null,null,null,null,null,null,null,null,null,null,null,null,null,null,null,null,null,"948",9,4,8,{"$f":"V2","v":"X"}]
[null,null,null,null,null,null,null,null,null,null,null,null,null,null,null,null,null,null,null,null,null,null,null,null,null,null,"949",9,4,9,{"$f":"V2","v":"X"}]
[null,null,null,null,null,null,null,null,null,null,null,null,null,null,null,null,null,null,null,null,null,null,null,null,null,null,"951",9,5,1,{"$f":"V2","v":"X"}]
[null,null,null,null,null,null,null,null,null,null,null,null,null,null,null,null,null,null,null,null,null,null,null,null,null,null,"952",9,5,2,{"$f":"V2","v":"X"}]
[null,null,null,null,null,null,null,null,null,null,null,null,null,null,null,null,null,null,null,null,null,null,null,null,null,null,"953",9,5,3,{"$f":"W2","v":"Y"}]
[null,null,null,null,null,null,null,null,null,null,null,null,null,null,null,null,null,null,null,null,null,null,null,null,null,null,"954",9,5,4,{"$f":"W2","v":"Y"}]
[null,null,null,null,null,null,null,null,null,null,null,null,null,null,null,null,null,null,null,null,null,null,null,null,null,null,"955",9,5,5,{"$f":"W2","v":"Y"}]
[null,null,null,null,null,null,null,null,null,null,null,null,null,null,null,null,null,null,null,null,null,null,null,null,null,null,"956",9,5,6,{"$f":"W2","v":"Y"}]
[null,null,null,null,null,null,null,null,null,null,null,null,null,null,null,null,null,null,null,null,null,null,null,null,null,null,"957",9,5,7,"NUL"]
[null,null,null,null,null,null,null,null,null,null,null,null,null,null,null,null,null,null,null,null,null,null,null,null,null,null,"958",9,5,8,{"$f":"V2","v":"X"}]
[null,null,null,null,null,null,null,null,null,null,null,null,null,null,null,null,null,null,null,null,null,null,null,null,null,null,"959",9,5,9,{"$f":"V2","v":"X"}]
[null,null,null,null,null,null,null,null,null,null,null,null,null,null,null,null,null,null,null,null,null,null,null,null,null,null,"961",9,6,1,{"$f":"V2","v":"X"}]
[null,null,null,null,null,null,null,null,null,null,null,null,null,null,null,null,null,null,null,null,null,null,null,null,null,null,"962",9,6,2,{"$f":"V2","v":"X"}]
[null,null,null,null,null,null,null,null,null,null,null,null,null,null,null,null,null,null,null,null,null,null,null,null,null,null,"963",9,6,3,"NUL"]
[null,null,null,null,null,null,null,null,null,null,null,null,null,null,null,null,null,null,null,null,null,null,null,null,null,null,"964",9,6,4,{"$f":"W2","v":"Y"}]
[null,null,null,null,null,null,null,null,null,null,null,null,null,null,null,null,null,null,null,null,null,null,null,null,null,null,"965",9,6,5,{"$f":"W2","v":"Y"}]
[null,null,null,null,null,null,null,null,null,null,null,null,null,null,null,null,null,null,null,null,null,null,null,null,null,null,"966",9,6,6,{"$f":"W2","v":"Y"}]
[null,null,null,null,null,null,null,null,null,null,null,null,null,null,null,null,null,null,null,null,null,null,null,null,null,null,"967",9,6,7,{"$f":"W2","v":"Y"}]
[null,null,null,null,null,null,null,null,null,null,null,null,null,null,null,null,null,null,null,null,null,null,null,null,null,null,"968",9,6,8,{"$f":"V2","v":"X"}]
[null,null,null,null,null,null,null,null,null,null,null,null,null,null,null,null,null,null,null,null,null,null,null,null,null,null,"969",9,6,9,{"$f":"V2","v":"X"}]
[null,null,null,null,null,null,null,null,null,null,null,null,null,null,null,null,null,null,null,null,null,null,null,null,null,null,"971",9,7,1,{"$f":"V2","v":"X"}]
[null,null,null,null,null,null,null,null,null,null,null,null,null,null,null,null,null,null,null,null,null,null,null,null,null,null,"972",9,7,2,{"$f":"V2","v":"X"}]
[null,null,null,null,null,null,null,null,null,null,null,null,null,null,null,null,null,null,null,null,null,null,null,null,null,null,{"$f":"CONCATENATE(AB707,AC707,AD707)","v":"973"},9,7,3,{"$f":"V2","v":"X"}]
[null,null,null,null,null,null,null,null,null,null,null,null,null,null,null,null,null,null,null,null,null,null,null,null,null,null,"974",9,7,4,{"$f":"W2","v":"Y"}]
[null,null,null,null,null,null,null,null,null,null,null,null,null,null,null,null,null,null,null,null,null,null,null,null,null,null,"975",9,7,5,{"$f":"W2","v":"Y"}]
[null,null,null,null,null,null,null,null,null,null,null,null,null,null,null,null,null,null,null,null,null,null,null,null,null,null,"976",9,7,6,{"$f":"W2","v":"Y"}]
[null,null,null,null,null,null,null,null,null,null,null,null,null,null,null,null,null,null,null,null,null,null,null,null,null,null,"977",9,7,7,{"$f":"W2","v":"Y"}]
[null,null,null,null,null,null,null,null,null,null,null,null,null,null,null,null,null,null,null,null,null,null,null,null,null,null,"978",9,7,8,"NUL"]
[null,null,null,null,null,null,null,null,null,null,null,null,null,null,null,null,null,null,null,null,null,null,null,null,null,null,"979",9,7,9,{"$f":"V2","v":"X"}]
[null,null,null,null,null,null,null,null,null,null,null,null,null,null,null,null,null,null,null,null,null,null,null,null,null,null,"981",9,8,1,{"$f":"V2","v":"X"}]
[null,null,null,null,null,null,null,null,null,null,null,null,null,null,null,null,null,null,null,null,null,null,null,null,null,null,"982",9,8,2,{"$f":"V2","v":"X"}]
[null,null,null,null,null,null,null,null,null,null,null,null,null,null,null,null,null,null,null,null,null,null,null,null,null,null,"983",9,8,3,{"$f":"V2","v":"X"}]
[null,null,null,null,null,null,null,null,null,null,null,null,null,null,null,null,null,null,null,null,null,null,null,null,null,null,"984",9,8,4,"NUL"]
[null,null,null,null,null,null,null,null,null,null,null,null,null,null,null,null,null,null,null,null,null,null,null,null,null,null,"985",9,8,5,{"$f":"W2","v":"Y"}]
[null,null,null,null,null,null,null,null,null,null,null,null,null,null,null,null,null,null,null,null,null,null,null,null,null,null,"986",9,8,6,{"$f":"W2","v":"Y"}]
[null,null,null,null,null,null,null,null,null,null,null,null,null,null,null,null,null,null,null,null,null,null,null,null,null,null,"987",9,8,7,{"$f":"W2","v":"Y"}]
[null,null,null,null,null,null,null,null,null,null,null,null,null,null,null,null,null,null,null,null,null,null,null,null,null,null,"988",9,8,8,{"$f":"W2","v":"Y"}]
[null,null,null,null,null,null,null,null,null,null,null,null,null,null,null,null,null,null,null,null,null,null,null,null,null,null,"989",9,8,9,{"$f":"V2","v":"X"}]
[null,null,null,null,null,null,null,null,null,null,null,null,null,null,null,null,null,null,null,null,null,null,null,null,null,null,"991",9,9,1,"NUL"]
[null,null,null,null,null,null,null,null,null,null,null,null,null,null,null,null,null,null,null,null,null,null,null,null,null,null,"992",9,9,2,{"$f":"V2","v":"X"}]
[null,null,null,null,null,null,null,null,null,null,null,null,null,null,null,null,null,null,null,null,null,null,null,null,null,null,"993",9,9,3,{"$f":"V2","v":"X"}]
[null,null,null,null,null,null,null,null,null,null,null,null,null,null,null,null,null,null,null,null,null,null,null,null,null,null,"994",9,9,4,{"$f":"V2","v":"X"}]
[null,null,null,null,null,null,null,null,null,null,null,null,null,null,null,null,null,null,null,null,null,null,null,null,null,null,"995",9,9,5,{"$f":"V2","v":"X"}]
[null,null,null,null,null,null,null,null,null,null,null,null,null,null,null,null,null,null,null,null,null,null,null,null,null,null,"996",9,9,6,{"$f":"V2","v":"X"}]
[null,null,null,null,null,null,null,null,null,null,null,null,null,null,null,null,null,null,null,null,null,null,null,null,null,null,"997",9,9,7,{"$f":"V2","v":"X"}]
[null,null,null,null,null,null,null,null,null,null,null,null,null,null,null,null,null,null,null,null,null,null,null,null,null,null,"998",9,9,8,"NUL"]